Cogmind - Beta 16.1 @@@ ROGUE MODE // 2026.04.25 @ 19:04:07 Player: JuustuToug Result: Destroyed by G-73 Enforcer with Heavy Laser Performance ------------- Evolutions (8) 4000 Regions Visited (29) 5800 Robots Destroyed (445) 2225 Value Destroyed (17324) 17324 Prototype IDs (86) 1720 Alien Tech Used (3) 600 Bonus (7489) 7489 TOTAL SCORE: 39158 Bonus ------- High Alert Combat Kills 2267 Follower Combat Kills 3566 Awakened Behemoth Slayer 1000 Network Hubs Disabled 400 Met Data Miner 300 Met Imprinter 300 Was Imprinted 300 Met Zhirov 300 Friendly Fire -944 Cogmind --------- Core Integrity 0/1450 Matter 214/300 Energy 100/100 System Corruption 19% Temperature Cool (9) Movement Flying (24) Location -2/Testing Parts ------- > --- POWER (2) -------- (None) > --- PROPULSION (8) --- Gyrokinetic Inverter Gyrokinetic Inverter Cooled Q-thruster Cooled Q-thruster Cooled Q-thruster > --- UTILITY (11) ----- Advanced Signal Interpreter > --- WEAPON (3) ------- Hypervelocity EM Gauss Rifle Plasma Sword > --- INVENTORY (5) ---- Dimensional Node Initializer Fusion Bomb Launcher Ragnarok Missile Launcher Ionic Axe CR-A16's Behemoth Slayer Peak State ------------ > --- POWER ------------ Micro Antimatter Reactor Light Quantum Reactor > --- PROPULSION ------- Advanced Medium Treads Advanced Medium Treads Improved Heavy Treads Improved Heavy Treads Improved Heavy Treads > --- UTILITY ---------- Experimental Cooling System Experimental Cooling System Experimental Cooling System Machine Analyzer Advanced Signal Interpreter Improved Target Analyzer Improved Weapon Shielding Advanced Hacking Suite Improved System Shield > --- WEAPON ----------- Enhanced Nova Cannon Plasma Sword Plasma Sword > --- INVENTORY -------- Gyrokinetic Inverter Gyrokinetic Inverter Dimensional Node Initializer Fusion Bomb Launcher CR-A16's Behemoth Slayer [Rating: 151] Favorites ----------- Power Light Angular Momentum Engine Engine Light Angular Momentum Engine Power Core Light Nuclear Core Reactor Light Antimatter Reactor Propulsion Improved Carbon-fiber Leg Treads Medium Treads Leg Improved Carbon-fiber Leg Wheel Compact Wheel Hover Unit Antigrav System Flight Unit Impulse Thruster Utility High-capacity Storage Unit Device Experimental Sensor Array Storage High-capacity Storage Unit Processor Advanced Signal Interpreter Hackware Hacking Suite Protection Light Regenerative Plating Weapon Phase Cannon Energy Gun Variable Charge Gun Energy Cannon Phase Cannon Ballistic Gun Enhanced Autogun Ballistic Cannon Compact Linear Accelerator Launcher Precision Rocket Launcher Special Weapon RU-N14's Throwing Claymores Impact Weapon Makeshift Hammer Slashing Weapon Chainsword Piercing Weapon CR-A16's Behemoth Slayer Build | -11 -10 -10 -9 -9 -8 -8 -7 -7 -7 -7 -6 -6 -6 -6 -6 -5 -5 -5 -5 -5 -4 -4 -4 -4 -4 -4 -3 -2 -2 ------- Run | Yrd Mat Min Mat Min Mat Sto Fac Low Low Dat Pro Fac Low Low Zio Pro Fac Upp Upp Zhi Pro Fac Ext Cet Arc Hub Res Res Tes Slots Evolved 16 | . . . 2 . 2 . 2 . . . . 2 . . . . 2 . . . . 2 . . . . 2 2 . Power 1 | . . . . . . . 1 . . . . . . . . . . . . . . . . . . . . . . Propulsion 6 | . . . 1 . 1 . 1 . . . . . . . . . . . . . . 1 . . . . 1 1 . Utility 8 | . . . . . 1 . . . . . . 2 . . . . 2 . . . . 1 . . . . 1 1 . Weapon 1 | . . . 1 . . . . . . . . . . . . . . . . . . . . . . . . . . Parts Attached 408 | 7 6 9 18 3 19 9 35 6 4 . 1 52 . 4 1 4 42 4 2 1 10 17 41 10 2 17 44 33 7 Power 56 | 1 1 3 1 . 1 3 8 . . . . 12 . 1 . 1 6 . . . . 2 6 1 . 2 2 4 1 Engine 22 | 1 1 1 1 . 1 3 2 . . . . 8 . 1 . 1 2 . . . . . . . . . . . . Core 22 | . . 2 . . . . 6 . . . . 4 . . . . 4 . . . . 1 3 . . 2 . . . Reactor 12 | . . . . . . . . . . . . . . . . . . . . . . 1 3 1 . . 2 4 1 Propulsion 130 | 2 . 1 8 . 7 2 13 2 2 . 1 16 . 2 . . 17 1 . . 1 4 12 . . 7 17 11 4 Treads 58 | 2 . 1 8 . 7 2 10 2 2 . 1 . . . . . 1 . . . . 2 3 . . . 12 5 . Leg 46 | . . . . . . . . . . . . 16 . 2 . . 9 1 . . . . 7 . . 6 4 1 . Wheel 12 | . . . . . . . 3 . . . . . . . . . 6 . . . . . 2 . . 1 . . . Hover 5 | . . . . . . . . . . . . . . . . . 1 . . . . . . . . . 1 3 . Flight 9 | . . . . . . . . . . . . . . . . . . . . . 1 2 . . . . . 2 4 Utility 120 | 2 3 1 1 1 5 . 6 2 1 . . 15 . 1 . 1 9 . . 1 4 5 16 7 2 4 20 13 . Device 71 | 1 2 1 1 1 3 . 4 1 . . . 8 . 1 . . 5 . . 1 2 4 9 5 2 3 10 7 . Storage 9 | 1 1 . . . 1 . . . . . . 1 . . . . 1 . . . . . 3 . . . 1 . . Processor 17 | . . . . . . . 1 . . . . 3 . . . . 3 . . . 2 . . . . . 4 4 . Hackware 7 | . . . . . 1 . 1 . . . . . . . . . . . . . . 1 . . . . 3 1 . Protection 16 | . . . . . . . . 1 1 . . 3 . . . 1 . . . . . . 4 2 . 1 2 1 . Artifact . | . . . . . . . . . . . . . . . . . . . . . . . . . . . . . . Weapon 102 | 2 2 4 8 2 6 4 8 2 1 . . 9 . . 1 2 10 3 2 . 5 6 7 2 . 4 5 5 2 Energy Gun 14 | 1 . 1 2 . . . . . . . . . . . . . 1 . . . 3 . 3 1 . 1 . . 1 Energy Cannon 33 | . 2 1 1 1 3 1 5 1 . . . 3 . . . . 5 2 2 . . 4 . . . . 1 1 . Ballistic Gun 28 | 1 . 2 4 1 2 2 2 . . . . 3 . . . 1 2 . . . 2 1 1 1 . 2 1 . . Ballistic Cannon 3 | . . . . . . . . . . . . . . . . . 2 1 . . . . . . . . . . . Launcher 12 | . . . 1 . . 1 1 1 1 . . 2 . . . . . . . . . . . . . 1 2 1 1 Special Weapon 2 | . . . . . . . . . . . . . . . 1 . . . . . . . 1 . . . . . . Impact Weapon 2 | . . . . . 1 . . . . . . . . . . . . . . . . 1 . . . . . . . Slashing Weapon 6 | . . . . . . . . . . . . 1 . . . . . . . . . . 1 . . . 1 3 . Piercing Weapon 2 | . . . . . . . . . . . . . . . . 1 . . . . . . 1 . . . . . . Special Melee Weapon . | . . . . . . . . . . . . . . . . . . . . . . . . . . . . . . Unidentified Prototypes 45 | . . 1 3 . . 2 3 . . . . 2 . . 1 . 9 1 . 2 . 1 7 3 . . 4 3 3 Corrupted Parts 5 | . . . . . . . . . . . . 2 . . . . 2 . . . . . . . . . 1 . . System Corruption 31 | . . . . . . . . . . . . 19 . . . . 10 . . . . . . . . . 2 . . Parts Lost 164 | . . 2 1 . 1 . 17 1 1 . 1 18 . 2 . 1 26 . . . 22 3 4 . . 16 19 17 12 Power 28 | . . . . . . . 3 . . . . 7 . . . 1 4 . . . 2 . 1 . . 2 4 2 2 Propulsion 64 | . . 1 . . 1 . 10 1 1 . . 4 . 2 . . 14 . . . 6 2 1 . . 7 3 9 2 Utility 44 | . . 1 1 . . . 3 . . . . 1 . . . . 3 . . . 7 1 2 . . 4 10 5 6 Weapon 28 | . . . . . . . 1 . . . 1 6 . . . . 5 . . . 7 . . . . 3 2 1 2 Highest Loss Streak 18 | . . 1 1 . 1 . 3 1 1 . 1 4 . 2 . 1 18 . . . 6 1 3 . . 8 6 9 15 To Critical Strikes 5 | . . . . . . . . . . . . 3 . . . . 1 . . . . . . . . . . 1 . Average Backups 15 | 1 11 14 14 15 18 19 19 17 16 17 15 15 16 16 16 17 17 18 16 16 16 4 13 19 19 17 15 4 4 Power . | . 1 1 1 1 . 1 . 1 1 1 1 1 2 2 1 . . . . . . . . 1 1 . . . . Propulsion 2 | . 1 2 4 7 5 6 6 2 1 1 1 3 2 1 . 1 . . . . . . 1 5 5 3 3 . . Utility 5 | . 1 3 2 1 4 4 5 7 7 7 7 6 8 8 8 8 8 8 7 7 7 . 4 5 5 5 5 . . Weapon 5 | . 7 7 7 5 7 7 6 7 7 7 5 3 2 2 5 4 5 7 7 6 5 1 5 6 6 5 4 2 3 Tool/Special . | . . . . . . . . . . . . . . . . . . . . . . . . . . . . . . Unused Backups 92 | . 5 3 8 . 10 5 13 3 2 . . 7 . . 2 1 11 1 . . 2 1 3 2 . . 9 2 2 Power 13 | . 2 1 2 . 1 2 1 . . . . . . . 1 . . 1 . . . 1 . 1 . . . . . Propulsion 20 | . . . 1 . 2 . 7 1 . . . 3 . . . . 1 . . . . . . . . . 4 1 . Utility 22 | . . . 2 . 2 . 2 1 2 . . 3 . . . . 3 . . . 1 . 1 1 . . 3 1 . Weapon 33 | . 3 2 3 . 5 3 3 1 . . . 1 . . 1 1 5 . . . . . 2 . . . 2 . 1 Tool/Special 4 | . . . . . . . . . . . . . . . . . 2 . . . 1 . . . . . . . 1 Average Slot Usage (%) 91 | . 100 91 98 97 99 99 95 99 99 78 100 96 100 99 100 99 85 95 94 85 64 52 92 98 100 91 81 53 47 Engine 6 | . 14 6 4 11 9 9 6 7 7 7 7 7 13 13 13 12 3 5 5 5 3 . . . . . . . . Core 3 | . . 7 6 . . . 6 7 7 7 7 4 . . . . 3 5 5 5 3 1 4 1 . 3 3 . . Treads 17 | . 28 28 33 32 35 35 31 37 37 38 38 6 . . . . . . . . . 5 16 . . . 18 12 . Leg 10 | . . . . . . . . . . . . 26 33 32 33 32 17 22 22 22 4 . 5 30 30 28 7 . . Wheel 1 | . . . . . . . 4 . . . . . . . . . 5 5 5 5 . . 4 . . . . . . Device 9 | . 14 6 9 8 9 9 7 7 7 7 7 6 6 8 6 6 5 9 16 15 12 14 18 20 21 20 20 3 1 Storage 6 | . 14 14 11 11 9 9 7 7 7 7 7 6 6 6 6 6 5 5 5 5 4 . 4 5 5 5 3 . . Processor 7 | . . . . . . . . . . . . 10 13 13 13 13 20 22 22 22 15 10 10 10 9 5 8 10 8 Hackware 2 | . . . . . 8 9 5 7 7 7 7 4 . . . . . . . . . 1 4 . . . . 9 7 Protection 1 | . . . . . . . . . . . . 2 6 3 6 6 2 . . . . . 4 8 10 9 5 1 2 Energy Cannon 11 | . 13 14 11 19 18 17 14 14 15 1 15 8 6 6 6 5 6 8 11 1 11 9 14 15 15 5 1 2 . Ballistic Gun 7 | . 13 13 21 13 6 8 7 7 6 . 6 4 12 12 11 12 7 4 . . 2 . . . . 1 1 . . Peak Build Rating 151 | 7 8 18 22 21 35 37 56 57 57 52 53 78 75 76 79 77 94 94 91 91 91 78 128 141 141 134 140 151 105 Average Rating 61 | 5 7 11 19 20 31 34 44 55 56 40 51 68 75 74 76 76 78 88 87 77 69 55 101 136 139 115 117 100 72 On Entrance 63 | . 7 8 13 19 21 35 35 56 57 53 52 50 71 75 75 78 77 91 86 90 91 39 75 125 141 134 111 54 89 Avg Prop Armor Cover (%) 10 | . . . . . . . 12 5 . . . . . . . . 6 3 3 3 2 3 12 . . . 36 29 3 Naked Turns 9 | . . . . . . . . . . . . . . . . . . . . . . . . . . . 9 . . Heaviest Build 130 | 15 31 36 40 43 70 70 77 74 76 73 73 81 80 84 84 83 85 83 85 85 86 53 126 127 130 130 100 47 29 Greatest Support 285 | 40 40 40 66 66 90 90 140 140 140 132 132 124 87 87 87 87 98 65 65 65 65 46 169 138 138 138 210 285 34 Greatest Overweight (x) 22 | . . . . . . . 2 . . . . . . 1 . . 5 8 1 1 22 3 3 . . 1 3 . 1 Average Overweight (x) . | . . . . . . . . . . . . . . . . . . 1 1 . 5 . 1 . . . . . . Largest Inventory Capacity 20 | 8 15 15 15 15 20 20 20 20 20 20 20 20 20 20 20 20 20 20 20 20 20 5 20 20 20 20 20 5 5 Average Capacity 18 | 7 12 15 15 15 19 20 20 20 20 20 20 20 20 20 20 20 20 20 20 20 19 5 17 20 20 20 17 5 5 Most Carried 20 | 2 15 15 15 15 20 20 20 20 20 20 20 20 20 20 20 20 20 20 20 20 20 5 20 20 20 20 20 5 5 Average Carried 17 | 1 11 14 14 14 18 19 19 19 19 19 18 19 20 19 19 19 19 19 19 19 18 4 13 19 19 17 16 4 4 Final Capacity 20 | 8 15 15 15 15 20 20 20 20 20 20 20 20 20 20 20 20 20 20 20 20 5 5 20 20 20 20 5 5 5 Final Carried 20 | 2 15 15 15 15 20 20 20 20 20 19 20 20 20 18 20 20 20 19 20 20 5 5 20 20 20 17 5 3 5 Class Distribution -------------------- 20% | Gunner 15% | Mutant 13% | Skirmisher 13% | Scavenger-Gunner 7% | Scavenger-Skirmisher 5% | Scavenger-Mutant 5% | Commander-Gunner 4% | Scavenger-Tank 3% | Infiltrator-Skirmisher 3% | Hacker-Mutant Dominant Class ---------------- Mutant | -10/Materials Mutant | -10/Mines Gunner | -9/Materials Gunner | -9/Mines Gunner | -8/Materials Commander-Gunner | -8/Storage Gunner | -7/Factory Gunner | -7/Lower Caves Gunner | -7/Lower Caves Scavenger-Mutant | -7/Data Miner Scavenger-Gunner | -6/Proximity Caves Mutant | -6/Factory Skirmisher | -6/Lower Caves Skirmisher | -6/Lower Caves Skirmisher | -6/Zion Skirmisher | -5/Proximity Caves Scavenger-Mutant | -5/Factory Scavenger-Skirmisher | -5/Upper Caves Scavenger-Skirmisher | -5/Upper Caves Scavenger-Mutant | -5/Zhirov Infiltrator-Skirmisher | -4/Proximity Caves Scavenger-Gunner | -4/Factory Scavenger-Gunner | -4/Extension Scavenger-Tank | -4/Cetus Scavenger-Tank | -4/Archives Scavenger-Mutant | -4/Hub_04(d) Mutant | -3/Research Hacker-Mutant | -2/Research Hacker-Mutant | -2/Testing Resources | -11 -10 -10 -9 -9 -8 -8 -7 -7 -7 -7 -6 -6 -6 -6 -6 -5 -5 -5 -5 -5 -4 -4 -4 -4 -4 -4 -3 -2 -2 ----------- Run | Yrd Mat Min Mat Min Mat Sto Fac Low Low Dat Pro Fac Low Low Zio Pro Fac Upp Upp Zhi Pro Fac Ext Cet Arc Hub Res Res Tes Matter Collected 11191 | 297 302 189 529 185 450 452 752 163 380 . 129 1238 158 180 74 526 737 311 102 166 472 453 450 190 40 848 684 681 53 Remotely . | . . . . . . . . . . . . . . . . . . . . . . . . . . . . . . Salvage Created 18768 | 149 635 240 1371 112 546 881 1954 58 1464 . 193 2021 52 130 . 392 1291 127 86 313 1026 202 1101 66 438 1470 1238 1171 41 Parts 842 | 11 42 15 88 7 34 48 100 5 41 . 2 81 1 . . 19 62 10 . 1 39 5 43 2 22 65 51 45 3 Haulers Intercepted 21 | . 2 . 3 . 1 5 2 . . . . 2 . . . . 3 . . . . 1 . . . 2 . . . Recyclers Shooed 19 | 1 1 1 3 . 1 . 1 . . . . 5 . . . . 3 . . . . 1 . . . . . 2 . Parts Field Recycled . | . . . . . . . . . . . . . . . . . . . . . . . . . . . . . . Retrieved Matter . | . . . . . . . . . . . . . . . . . . . . . . . . . . . . . . Parts Self-Destructed 68 | . . . . . . . . 5 12 . . . . . . 13 . 5 . 1 32 . . . . . . . . Prevented 27 | . . . . . . . . . 23 . . . . . . 4 . . . . . . . . . . . . . Parts Restored . | . . . . . . . . . . . . . . . . . . . . . . . . . . . . . . Kills | -11 -10 -10 -9 -9 -8 -8 -7 -7 -7 -7 -6 -6 -6 -6 -6 -5 -5 -5 -5 -5 -4 -4 -4 -4 -4 -4 -3 -2 -2 ------- Run | Yrd Mat Min Mat Min Mat Sto Fac Low Low Dat Pro Fac Low Low Zio Pro Fac Upp Upp Zhi Pro Fac Ext Cet Arc Hub Res Res Tes Combat Hostiles Destroyed 311 | . 13 5 26 1 15 13 35 3 22 . 4 32 . 5 . 11 23 4 . . 15 2 15 . . 28 22 14 3 Melee 21 | . . . . . 2 . 1 . . . . 5 . . . . . . . . . . . . . 1 8 4 . Guns 47 | . 6 2 11 . 1 . 7 . . . . 5 . 1 . 1 4 . . . 3 . 2 . . 4 . . . Cannons 108 | . 6 3 11 1 8 8 25 . . . 1 10 . . . 2 7 1 . . 6 2 9 . . 3 2 3 . AOE 112 | . . . 4 . 4 5 . 3 15 . 3 10 . 4 . 8 12 3 . . 4 . . . . 19 11 4 3 Classes Destroyed 22 | 3 5 1 3 1 1 1 1 1 . . . . . . . . 1 1 . . 2 . . . . . 1 . . Worker 26 | 1 1 . 1 1 1 . 2 . . . . 4 . . . . 2 . . . . . . . . 12 . 1 . Builder 18 | . . . 3 . 1 1 2 . . . . 1 . . . . 4 . . . . . 1 . . 3 . 2 . Tunneler 9 | 2 . 3 . 1 . . . . . . . . . . . . . . . . . . . . . 2 . 1 . Hauler 21 | . 2 . 3 . 1 5 2 . . . . 2 . . . . 3 . . . . 1 . . . 2 . . . Recycler 15 | 1 1 . 2 . . 1 2 . . . . 1 . . . . . . . . . . 1 . . 4 1 1 . Minesweeper 5 | . . . . . . . . 1 . . 1 . . . . 1 . . 1 . 1 . . . . . . . . Mechanic 9 | . . 1 . . . 1 . . 1 . . 1 . . . . 2 . . . . . . . . . 1 2 . Operator 8 | . 1 . . . . . . . . . . . . . . . . . . . . . . . 7 . . . . Watcher 15 | . 3 . 3 . 1 1 . . . . . 3 . . . . . . . . 2 . 1 . . 1 . . . Swarmer 68 | . 5 3 7 . 7 . 5 3 . . . 4 . . . 6 . 4 . . 4 1 3 . . 8 . 5 3 Saboteur 2 | . . . . . . . . . . . . . . . . . . . . . 2 . . . . . . . . Grunt 125 | . 8 2 12 . 2 7 17 . 18 . 4 12 . 1 . 2 9 . . . 3 . 6 . . 7 13 2 . Brawler 12 | . . . 1 . . 2 . . 2 . . 1 . 2 . . . . . . 3 . . . . . . 1 . Duelist 6 | . . . . 1 . . . . 1 . . . . 1 . . . . . . . . . . . 2 . 1 . Protector 4 | . . . . . . 1 . . . . . . . . . . 1 . . . . . . . . 2 . . . Sentry 37 | . . . 6 . 5 2 4 . 2 . . 6 . 1 . 1 1 . . . 3 1 3 . . 1 1 . . Specialist 4 | . . . . . . . . . . . . . . . . . 2 . . . . . . . . . 2 . . Hunter 21 | . . . . . 1 1 2 . . . . 5 . . . . 4 . . . . . . . . 4 . 4 . Programmer 27 | . . . . . . . 7 . . . . 4 . . . 2 6 . . . 1 . 2 . . . 4 1 . Heavy 1 | . . . . . . . . . . . . . . . . . . . . . . . . . . . 1 . . Behemoth 4 | . . . . . . . . . . . . . . . . . . . . . 1 . 1 . . 1 1 . . Lightning 3 | . . . . . . . . . . . . . . . . . . . . . . . . . . 3 . . . Decomposer 5 | . . . . . . . . . . . . . 2 1 . . . 2 . . . . . . . . . . . Samaritan 2 | . . . . . . . . . . . . . . . . . . 1 1 . . . . . . . . . . Thug 1 | . . . . . . . . . . . . . . . . . . . . . . . . . 1 . . . . Savage 1 | . . . . . . . . . 1 . . . . . . . . . . . . . . . . . . . . Butcher 1 | . . . . . . . . . . . . . . . . . . . . . . . . 1 . . . . . Guerrilla 2 | . . . . . . . . . . . . . . . . . . . . . . . . . 2 . . . . Best Kill Streak 16 | 3 3 3 5 1 5 6 4 3 7 . 4 10 . 5 . 5 14 4 1 . 4 1 7 . 6 16 7 6 3 Combat Bots Only 9 | . 3 3 4 1 5 5 3 3 7 . 4 8 . 5 . 5 9 4 . . 4 1 7 . . 7 7 4 3 Max Kills in Single Turn 7 | 1 1 1 2 1 2 2 2 1 2 . 2 4 1 2 . 3 5 2 1 . 4 1 1 1 1 7 4 5 3 Gunslinging . | . . . . . . . . . . . . . . . . . . . . . . . . . . . . . . Exploded 5 | . . . 2 . 2 2 . 1 2 . 2 4 . 2 . 3 4 2 . . 2 . . . . 5 4 4 3 Melee 1 | . . . . . 1 . 1 . . . . 1 . . . . . . . . . . . . . 1 1 1 . Uniques/NPCs Destroyed . | . . . . . . . . . . . . . . . . . . . . . . . . . . . . . . Combat | -11 -10 -10 -9 -9 -8 -8 -7 -7 -7 -7 -6 -6 -6 -6 -6 -5 -5 -5 -5 -5 -4 -4 -4 -4 -4 -4 -3 -2 -2 -------- Run | Yrd Mat Min Mat Min Mat Sto Fac Low Low Dat Pro Fac Low Low Zio Pro Fac Upp Upp Zhi Pro Fac Ext Cet Arc Hub Res Res Tes Hostile Shots Fired 2892 | . 42 28 96 2 77 47 351 8 52 . 10 510 . 51 . 42 295 3 . . 116 54 87 7 8 238 316 329 123 Missed 912 | . 6 6 26 . 25 8 100 . 21 . 5 188 . 23 . 13 67 2 . . 26 26 36 4 6 106 88 69 61 Hits 1980 | . 36 22 70 2 52 39 251 8 31 . 5 322 . 28 . 29 228 1 . . 90 28 51 3 2 132 228 260 62 Melee 26 | . . . 2 2 . 1 . . 2 . . . . . . . . . . . 11 . . . . . . 8 . Projectile 1954 | . 36 22 68 . 52 38 251 8 29 . 5 322 . 28 . 29 228 1 . . 79 28 51 3 2 132 228 252 62 AOE 5 | . . . . . 3 . 2 . . . . . . . . . . . . . . . . . . . . . . Critical Strikes 74 | . 2 . 1 1 2 . 8 . . . . 6 . 1 . 3 7 . . . 6 2 4 2 . 7 13 6 3 Part Disruptions 3 | . . . . . . . . . . . . . . 1 . . 1 . . . . . . . . . 1 . . Damage Taken 37413 | . 390 250 873 64 855 694 3425 124 676 . 136 3919 . 560 . 801 4004 13 . . 2302 399 1196 135 45 3534 5852 5643 1523 Core 5255 | . 29 43 135 . 44 104 334 . 64 . 17 353 . 14 . 48 632 . . . 314 96 183 . . 221 1169 612 843 Absorbed by Shields 221 | . . . . . . . . . . . . . . . . . . . . . . . 90 . . . 131 . . Reduced by Siege Mode 80 | . . . . . . . . . . . . . . . . . . . . . . . . . . . 12 68 . Redirected to Shielding 126 | . . . . . . . . . . . . . . . . . . . . . . . . . . . 21 69 36 Ignored by Resistances 583 | . . . . . . . . . . . . . . . . . . . . . . . . . . 18 162 403 . Regen/Repaired (Parts) 1155 | . . . . . 66 151 . . . . . 135 . 1 656 80 66 . . . . . . . . . . . . Core Remaining (%) 52 | 100 . 71 . 66 . 73 . . . . 40 . . . . 51 . . . . 5 . . . . 56 9 . . Volleys Fired 972 | 9 48 18 74 8 28 52 129 8 37 . 15 94 10 49 1 24 103 20 12 . 54 12 33 7 22 42 23 39 1 Largest 3 | 2 2 2 3 3 3 3 3 3 3 . 3 3 3 3 1 3 3 2 2 . 3 3 3 3 3 3 3 1 1 Hottest 315 | 70 80 95 118 155 168 158 180 120 90 . 90 205 128 128 85 133 298 183 183 . 268 270 270 270 270 225 315 120 70 Shots Fired 2008 | 18 96 37 210 24 78 144 318 10 43 . 27 206 15 53 1 46 154 25 24 . 113 30 95 21 66 78 36 39 1 Gun 680 | 18 48 18 136 10 24 45 101 1 3 . 6 57 5 7 . 22 56 3 . . 42 6 10 . . 49 13 . . Cannon 1217 | . 48 19 72 14 50 93 217 3 7 . 18 145 10 40 1 17 91 20 24 . 65 24 85 21 66 16 18 33 . Launcher 108 | . . . 2 . 4 6 . 6 33 . 3 4 . 6 . 7 4 2 . . 6 . . . . 13 5 6 1 Special 3 | . . . . . . . . . . . . . . . . . 3 . . . . . . . . . . . . Kinetic 643 | 9 48 18 136 10 24 45 101 1 3 . 6 57 5 7 . 22 69 4 . . 45 6 . . . 16 11 . . Thermal 1233 | 9 48 19 72 14 50 93 217 3 7 . 18 134 10 40 1 17 78 19 24 . 62 24 85 21 66 49 20 33 . Explosive 72 | . . . 2 . 4 6 . 6 . . 2 4 . 6 . 7 7 2 . . 6 . . . . 13 5 1 1 Electromagnetic 50 | . . . . . . . . . 33 . 1 11 . . . . . . . . . . . . . . . 5 . Phasic 10 | . . . . . . . . . . . . . . . . . . . . . . . 10 . . . . . . Robot Hit Streak 20 | 4 16 7 20 9 11 9 17 7 14 . 9 12 3 4 . 7 9 6 7 . 12 9 18 5 5 9 5 7 . Robot Miss Streak 13 | 3 2 3 4 5 3 6 5 . 1 . 1 6 . 3 . 1 4 2 3 . 2 2 2 3 3 13 3 2 . Penetration Max 1 | . . . . . 1 1 . . . . . 1 . . . . . . . . 1 . . . . 1 . . . Secondary Targets . | . . . . . . . . . . . . . . . . . . . . . . . . . . . . . . Shots Hit Robots 1160 | 10 62 19 116 9 40 72 172 2 27 . 15 140 2 5 . 24 75 6 10 10 73 20 62 14 32 45 43 53 2 Core Hits 977 | 5 29 12 48 4 25 38 66 10 37 . 15 90 . 20 . 24 70 6 2 4 40 6 24 5 13 229 120 30 5 Critical Kills 17 | . 1 . . . 1 . 3 . . . . 1 . . . . 3 1 . . 4 1 . . 2 . . . . Critical Parts Destroyed 12 | . . . 2 . . . 1 . . . . . . . . 1 4 . . . 4 . . . . . . . . Critical Strikes 57 | . 1 . 2 . 1 . 4 . . . . 6 . . . 3 8 1 . . 10 1 1 . 2 . 4 12 1 Meltdown 7 | . 1 . . . 1 . 2 . . . . . . . . . . . . . . 1 . . 2 . . . . Destroy 24 | . . . 2 . . . 2 . . . . 1 . . . 1 7 1 . . 10 . . . . . . . . Sever 20 | . . . . . . . . . . . . 5 . . . . 1 . . . . . . . . . 4 9 1 Impale 5 | . . . . . . . . . . . . . . . . 2 . . . . . . . . . . . 3 . Intensify 1 | . . . . . . . . . . . . . . . . . . . . . . . 1 . . . . . . Melee Attacks 181 | . . . . . 9 . . . . . . 50 . . . 6 . . . 10 5 2 1 . . 4 42 48 4 Impact 11 | . . . . . 9 . . . . . . . . . . . . . . . . 2 . . . . . . . Slashing 138 | . . . . . . . . . . . . 50 . . . . . . . . . . . . . 3 41 40 4 Piercing 32 | . . . . . . . . . . . . . . . . 6 . . . 10 5 . 1 . . 1 1 8 . Sneak Attacks 9 | . . . . . . . . . . . . 2 . . . . . . . . . . . . . 1 1 5 . Combat Hostiles . | . . . . . . . . . . . . . . . . . . . . . . . . . . . . . . Follow-up Attacks 12 | . . . . . . . . . . . . . . . . . . . . . . . . . . . 3 9 . Damage Inflicted 57755 | 120 997 365 2533 181 1828 2998 4691 301 2339 . 826 5738 63 854 . 2205 5715 378 319 716 2392 648 2332 549 1376 7964 4708 3747 872 Guns 6350 | 120 340 109 1005 35 160 465 979 . 39 . 86 717 . 22 . 245 565 15 . . 243 95 266 . . 710 134 . . Cannons 20175 | . 615 229 1231 146 662 1445 3586 54 161 . 187 2627 63 30 . 298 1350 124 319 . 1301 553 1985 549 1376 383 248 653 . Explosions 25265 | . . . 276 . 830 1079 . 247 2139 . 553 1491 . 802 . 1567 3692 239 . . 784 . . . . 6687 2833 1269 777 Melee 5488 | . . . . . 176 . . . . . . 856 . . . 95 . . . 716 64 . . . . 184 1493 1809 95 Ramming 383 | . 42 27 21 . . 9 126 . . . . 47 . . . . 14 . . . . . 81 . . . . 16 . Kinetic 6037 | 70 340 109 1005 35 160 465 979 . 39 . 86 717 . 22 . 245 879 15 . . 291 95 . . . 351 134 . . Thermal 20637 | 50 615 229 1231 146 1084 1445 3586 54 354 . 187 2388 63 30 . 337 1036 124 319 . 1253 553 1985 549 1376 742 248 653 . Explosive 21026 | . . . 276 . 408 1079 . 247 . . 440 1491 . 802 . 1528 3692 239 . . 784 . . . . 5819 2833 611 777 Electromagnetic 3824 | . . . . . . . . . 1946 . 113 239 . . . . . . . . . . . . . 868 . 658 . Impact 176 | . . . . . 176 . . . . . . . . . . . . . . . . . . . . . . . . Slashing 4065 | . . . . . . . . . . . . 856 . . . . 94 . . . . . . . . 184 1493 1343 95 Piercing 1341 | . . . . . . . . . . . . . . . . 95 . . . 716 64 . . . . . . 466 . Phasic 266 | . . . . . . . . . . . . . . . . . . . . . . . 266 . . . . . . Highest Corruption 33 | . . 3 . . . 2 4 2 3 3 3 27 27 27 27 3 12 12 12 12 33 . . . . 9 17 13 19 Average Corruption 9 | . . 3 . . . 2 2 2 2 3 3 8 27 27 27 2 11 12 12 12 19 . . . . 5 8 8 14 Corruption Purged 4 | . . . . . . . 4 . . . . . . . . . . . . . . . . . . . . . . Corruption Blocked . | . . . . . . . . . . . . . . . . . . . . . . . . . . . . . . Effects 444 | . . 26 . . . 22 8 11 17 2 15 42 18 47 2 6 30 30 17 12 92 . . . . 9 16 13 9 Message Errors 118 | . . 6 . . . 10 4 3 4 . 3 11 4 15 1 3 5 9 7 4 24 . . . . 3 1 1 . Matter Fused 95 | . . 6 . . . 3 1 2 6 1 5 9 5 6 1 1 10 2 4 3 21 . . . . 1 3 2 3 Heat Flow Errors 49 | . . 4 . . . 2 1 . 1 . 2 3 2 9 . . . 4 3 2 9 . . . . 2 3 2 . Energy Discharges 55 | . . 4 . . . . 1 5 2 . 1 3 1 5 . 1 4 4 2 1 14 . . . . 1 4 2 . Parts Rejected 8 | . . . . . . . . . . . . 3 . . . 1 1 . . . . . . . . . . 2 1 Parts Fused 7 | . . . . . . 1 . . 1 . . 2 . . . . . 1 . . 2 . . . . . . . . Data Loss (minor) 57 | . . 3 . . . 2 . 1 2 1 3 5 4 4 . . 6 3 1 2 14 . . . . 1 2 2 1 Data Loss (major) 17 | . . 2 . . . 2 . . . . 1 2 1 1 . . 1 1 . . 2 . . . . . 3 . 1 Misfires 18 | . . 1 . . . 2 1 . . . . 2 1 2 . . . 4 . . 3 . . . . 1 . 1 . Alerts 7 | . . . . . . . . . 1 . . . . 2 . . 1 1 . . 2 . . . . . . . . Misdirections 4 | . . . . . . . . . . . . 1 . . . . . . . . . . . . . . . . 3 Weapon Failures 9 | . . . . . . . . . . . . 1 . 3 . . 2 1 . . 1 . . . . . . 1 . Overload Shots 56 | . . . . . . . 19 1 1 . 2 28 . . . . 1 . . . . . . . . 3 1 . . Effects 2 | . . . . . . . 1 . . . . 1 . . . . . . . . . . . . . . . . . Energy Bleed 1 | . . . . . . . . . . . . 1 . . . . . . . . . . . . . . . . . Short Circuit 1 | . . . . . . . 1 . . . . . . . . . . . . . . . . . . . . . . Overflow Damage 2053 | . . . 10 . 177 59 138 6 13 . 20 240 38 11 . 188 87 28 109 199 117 16 14 . 118 113 46 256 50 Projectiles 815 | . . . . . 36 25 137 . . . 20 57 38 10 . 35 39 28 109 . 47 16 14 . 118 . . 86 . Explosions 701 | . . . 10 . 141 34 . 6 13 . . 113 . 1 . 153 48 . . . 70 . . . . 45 . 17 50 Melee 537 | . . . . . . . 1 . . . . 70 . . . . . . . 199 . . . . . 68 46 153 . Knockbacks 7 | . . . . . . . 1 . . . . . . . . . 4 . . . 1 . 1 . . . . . . Impact 2 | . . . . . . . 1 . . . . . . . . . . . . . . . 1 . . . . . . Kinetic 5 | . . . . . . . . . . . . . . . . . 4 . . . 1 . . . . . . . . Secondary . | . . . . . . . . . . . . . . . . . . . . . . . . . . . . . . Self-Inflicted Damage 1254 | . . . 18 . . . 12 12 151 . 47 16 . 9 . 16 104 . . . 47 . . . . 452 134 151 85 Shots 46 | . . . 1 . . . . 1 10 . 2 1 . 1 . 1 2 . . . 1 . . . . 12 8 5 1 Rammed 38 | . 8 7 2 . . 1 8 . . . . 1 . . . . 3 . . . . . . . . . . 8 . Targets Rammed 52 | . 9 7 3 . . 2 11 . . . . 5 . . . . 4 . . . 1 . 1 . . . . 9 . Kicked 8 | . . . . . . . . . . . . 4 . . . . 1 . . . 1 . 1 . . . . 1 . Crushed 6 | . 1 . 1 . . 1 3 . . . . . . . . . . . . . . . . . . . . . . Highest Temperature 534 | 54 102 218 167 217 245 306 346 42 188 . 247 284 240 350 48 325 534 215 389 166 359 333 349 182 240 307 306 255 14 Average Temperature 90 | 22 24 76 27 84 84 110 112 16 51 . 73 64 82 103 27 96 112 73 132 80 116 142 94 85 120 115 97 72 8 Received Heat Transfer 7342 | . 171 78 285 . 207 297 1206 . 192 . 45 822 . 96 . 405 801 . . . 728 39 282 . . 547 700 342 99 Effects 15 | . . . . . . 4 4 . . . . . . 1 . . 4 . 2 . . . . . . . . . . Shutdowns 1 | . . . . . . . . . . . . . . . . . 1 . . . . . . . . . . . . Energy Bleed 4 | . . . . . . 2 . . . . . . . 1 . . . . 1 . . . . . . . . . . Interference 7 | . . . . . . 2 4 . . . . . . . . . . . 1 . . . . . . . . . . Matter Decay 1 | . . . . . . . . . . . . . . . . . 1 . . . . . . . . . . . . Short Circuit 1 | . . . . . . . . . . . . . . . . . 1 . . . . . . . . . . . . Damage (minor) 1 | . . . . . . . . . . . . . . . . . 1 . . . . . . . . . . . . Siege Activations 3 | . . . . . . . . . . . . . . . . . . . . . . . . . . . 1 2 . Total Turns 16 | . . . . . . . . . . . . . . . . . . . . . . . . . . . 3 13 . Longest Duration 10 | . . . . . . . . . . . . . . . . . . . . . . . . . . . 3 10 . Martial Activations . | . . . . . . . . . . . . . . . . . . . . . . . . . . . . . . Shielding Activations . | . . . . . . . . . . . . . . . . . . . . . . . . . . . . . . Robots Disrupted . | . . . . . . . . . . . . . . . . . . . . . . . . . . . . . . Combat Hostiles . | . . . . . . . . . . . . . . . . . . . . . . . . . . . . . . Robots Corrupted 12 | . . . . . . . . . 7 . . 1 . . . . . . . . . . . . . . . 4 . Combat Hostiles 11 | . . . . . . . . . 7 . . 1 . . . . . . . . . . . . . . . 3 . Parts Fried 17 | . . . . . . . . . 8 . . 3 . . . . . . . . . . . . . 2 . 4 . Impact Corruptions 2 | . . . . . . . 1 . . . . 1 . . . . . . . . . . . . . . . . . Robots Melted 12 | . 1 . . . 1 . 2 . . . . 1 . . . . . . . . 1 1 3 . 2 . . . . Combat Hostiles 8 | . 1 . . . . . 2 . . . . 1 . . . . . . . . 1 . 3 . . . . . . Parts Melted 65 | 1 3 . 3 1 4 . 11 . 1 . . 9 . . . . . . . . 9 2 11 . 7 3 . . . Heat Transferred 25935 | 148 1295 407 1776 222 1175 1961 4603 74 472 . 259 2920 74 37 . 413 1394 187 435 . 1625 592 2109 592 1480 908 222 555 . Parts Sabotaged . | . . . . . . . . . . . . . . . . . . . . . . . . . . . . . . Parts Stolen . | . . . . . . . . . . . . . . . . . . . . . . . . . . . . . . Parts Stripped . | . . . . . . . . . . . . . . . . . . . . . . . . . . . . . . Power Chain Reactions 3 | . . . . . . . . . 3 . . . . . . . . . . . . . . . . . . . . Alert | -11 -10 -10 -9 -9 -8 -8 -7 -7 -7 -7 -6 -6 -6 -6 -6 -5 -5 -5 -5 -5 -4 -4 -4 -4 -4 -4 -3 -2 -2 ------- Run | Yrd Mat Min Mat Min Mat Sto Fac Low Low Dat Pro Fac Low Low Zio Pro Fac Upp Upp Zhi Pro Fac Ext Cet Arc Hub Res Res Tes Maximum Alert Level 4 | . . . 2 . 1 1 2 . . . . 2 . . . . 2 . . . . . 3 2 1 4 3 3 2 Low Security (%) 53 | 100 100 100 40 100 74 76 49 . . . . 24 . . . . 24 . . . . 100 79 . 6 20 . . . Level 1 26 | . . . 38 . 25 23 34 . . . . 61 . . . . 48 . . . . . 10 24 93 . . . 53 Level 2 12 | . . . 20 . . . 16 . . . . 13 . . . . 27 . . . . . 6 75 . 17 . 59 46 Level 3 7 | . . . . . . . . . . . . . . . . . . . . . . . 3 . . 19 100 40 . Level 4 1 | . . . . . . . . . . . . . . . . . . . . . . . . . . 41 . . . Level 5 . | . . . . . . . . . . . . . . . . . . . . . . . . . . . . . . High Security . | . . . . . . . . . . . . . . . . . . . . . . . . . . . . . . Max Security . | . . . . . . . . . . . . . . . . . . . . . . . . . . . . . . Peak Influence 1496 | 15 156 123 487 176 261 375 620 . . . . 470 . . . . 517 . . . . 149 815 489 380 1496 997 892 511 Initial 785 | . 3 53 9 176 . . 60 . . . . . . . . . 300 . . . . 12 53 451 150 118 785 543 438 Average 248 | 2 60 40 227 52 143 148 219 . . . . 234 . . . . 302 . . . . 74 140 426 324 850 886 649 400 Influence Increases 15157 | 20 536 399 973 57 696 802 1343 75 531 . 95 1129 . 100 . 453 1323 90 5 15 349 382 1510 175 279 1888 886 783 263 Destroy 0b10 Robot/C 7840 | . 260 260 560 20 360 380 820 60 440 . 80 640 . 100 . 300 500 80 . . 300 200 640 80 80 660 520 420 80 Destroy 0b10 Robot/NC 730 | 20 40 20 60 10 20 55 40 5 5 . 5 60 . . . 20 60 . 5 15 15 15 25 5 35 135 10 50 . Destroy Leader 1476 | . 80 50 142 10 94 84 214 10 40 . 10 180 . . . 30 106 10 . . 20 24 62 . . 116 110 74 10 Allied During Kill 1471 | . . 65 8 . 12 78 72 . 1 . . . . . . 103 13 . . . 14 87 684 80 84 75 40 53 2 Trap Triggered on 0b10 10 | . . . . . . . . . . . . . . . . . 10 . . . . . . . . . . . . Successful Hack 264 | . 49 . 20 . 11 25 48 . . . . 111 . . . . . . . . . . . . . . . . . Select Force Hacks 170 | . 60 . 90 . . . 20 . . . . . . . . . . . . . . . . . . . . . . Disable Machine 450 | . 15 . . . 30 45 15 . . . . 15 . . . . 45 . . . . 15 15 . 60 105 . 30 60 Anti-Garrison Action 150 | . . . . . . . . . . . . . . . . . . . . . . . . . . 150 . . . Destroy Structure 1561 | . 2 4 48 2 79 60 39 . . . . 93 . . . . 184 . . . . 26 84 10 20 572 176 126 36 Advance Influence 300 | . . . . . . . . . . . . . . . . . 300 . . . . . . . . . . . . Lose Combat Pursuer 735 | . 30 . 45 15 90 75 75 . 45 . . 30 . . . . 105 . . . . 15 . . . 75 30 30 75 Influence Decreases 14646 | 15 404 510 546 510 696 667 867 579 467 171 95 660 364 139 66 453 880 531 7 15 329 291 815 605 316 731 1415 970 532 Entered New Map 3646 | . 2 84 17 277 . . 75 227 21 171 . . 174 21 66 . . 164 2 . . 8 58 355 226 221 711 424 342 Time Decay 7915 | 15 402 386 441 233 440 437 542 342 416 . 95 470 190 108 . 343 530 367 5 15 187 190 551 110 90 230 404 326 50 Lost Part 1502 | . . 20 10 . 10 . 170 10 10 . . 180 . 10 . 10 260 . . . 102 30 40 . . 160 190 170 120 Lost Ally 1227 | . . 20 78 . 40 80 80 . 20 . . 10 . . . 100 90 . . . 40 63 166 140 . 120 110 50 20 Purge Threat 356 | . . . . . 206 150 . . . . . . . . . . . . . . . . . . . . . . . Squads Dispatched 90 | . 4 2 7 . 4 3 23 . 1 . . 11 . . . . 6 . . . . 3 1 . . 8 9 7 1 Investigation 22 | . 3 1 5 . 1 . 5 . . . . 2 . . . . 1 . . . . . . . . 1 3 . . Extermination 20 | . . . . . . . 7 . . . . 5 . . . . 2 . . . . 1 . . . 1 3 1 . Reinforcement 23 | . 1 . 1 . . . 4 . . . . 3 . . . . 3 . . . . 2 1 . . 3 2 2 1 Assault 14 | . . 1 1 . . 2 1 . 1 . . 1 . . . . . . . . . . . . . 2 1 4 . Garrison 11 | . . . . . 3 1 6 . . . . . . . . . . . . . . . . . . 1 . . . Intercept . | . . . . . . . . . . . . . . . . . . . . . . . . . . . . . . Searches Triggered . | . . . . . . . . . . . . . . . . . . . . . . . . . . . . . . Data Miner Redirects 2 | . . . . . . . . . . . . . . . . . 1 . . . . . . . . . . 1 . Construction Impeded 7 | . . . 1 . . . 1 . . . . . . . . . . . . . . . 1 . . 3 . 1 . Haulers Reinforced 5 | . . . . . . . . . . . . 2 . . . . 2 . . . . 1 . . . . . . . Active Scanning Responses . | . . . . . . . . . . . . . . . . . . . . . . . . . . . . . . Cargo Convoy Interrupts 1 | . . . . . . . . . . . . . . . . . 1 . . . . . . . . . . . . Stealth | -11 -10 -10 -9 -9 -8 -8 -7 -7 -7 -7 -6 -6 -6 -6 -6 -5 -5 -5 -5 -5 -4 -4 -4 -4 -4 -4 -3 -2 -2 --------- Run | Yrd Mat Min Mat Min Mat Sto Fac Low Low Dat Pro Fac Low Low Zio Pro Fac Upp Upp Zhi Pro Fac Ext Cet Arc Hub Res Res Tes Distress Signals 36 | . 2 . 7 . 1 3 1 . . . . 2 . . . . 1 . . . 1 1 4 1 . 4 4 1 3 Communications Jammed 34 | . . . . . . . . . . . . 1 . . . . 3 . . . 27 . . . . . . 3 . Distress Signals 34 | . . . . . . . . . . . . 1 . . . . 3 . . . 27 . . . . . . 3 . Times Spotted 539 | . 22 8 38 2 28 28 47 3 24 . 4 48 . 7 . 15 46 3 . . 16 16 26 4 15 41 41 34 23 Peak Tracking Total 17 | . 3 3 5 2 7 9 5 3 7 . 4 8 . 5 . 4 13 3 . . 5 6 5 5 2 7 9 9 17 Tactical Retreats 38 | . 2 . 3 1 3 4 3 . 2 . . 6 . 2 . . 5 . . . . 1 . . . 1 2 2 1 ECM-based Alert Blocks 14 | . . . . . . . . . . . . 11 . 2 . . 1 . . . . . . . . . . . . Traps | -11 -10 -10 -9 -9 -8 -8 -7 -7 -7 -7 -6 -6 -6 -6 -6 -5 -5 -5 -5 -5 -4 -4 -4 -4 -4 -4 -3 -2 -2 ------- Run | Yrd Mat Min Mat Min Mat Sto Fac Low Low Dat Pro Fac Low Low Zio Pro Fac Upp Upp Zhi Pro Fac Ext Cet Arc Hub Res Res Tes Traps Triggered 12 | . 1 . 1 . 1 2 1 . . . . 2 . 1 . . . . . . . . 1 . . . 1 . 1 Indirectly . | . . . . . . . . . . . . . . . . . . . . . . . . . . . . . . Trap Hack Attempts . | . . . . . . . . . . . . . . . . . . . . . . . . . . . . . . Triggered . | . . . . . . . . . . . . . . . . . . . . . . . . . . . . . . Disarmed . | . . . . . . . . . . . . . . . . . . . . . . . . . . . . . . Reprogrammed . | . . . . . . . . . . . . . . . . . . . . . . . . . . . . . . Reused 1 | . . . . . . . . . . . . . . . . . 1 . . . . . . . . . . . . Traps Extracted . | . . . . . . . . . . . . . . . . . . . . . . . . . . . . . . Installed 2 | . . . . . . . . . . . . . . . . . 2 . . . . . . . . . . . . Triggered 1 | . . . . . . . . . . . . . . . . . 1 . . . . . . . . . . . . Most Traps Carried 5 | . . . . . . . . 3 3 3 5 5 3 3 2 2 2 . 2 2 2 . . . . . . . . Machines | -11 -10 -10 -9 -9 -8 -8 -7 -7 -7 -7 -6 -6 -6 -6 -6 -5 -5 -5 -5 -5 -4 -4 -4 -4 -4 -4 -3 -2 -2 ---------- Run | Yrd Mat Min Mat Min Mat Sto Fac Low Low Dat Pro Fac Low Low Zio Pro Fac Upp Upp Zhi Pro Fac Ext Cet Arc Hub Res Res Tes Machines Disabled 44 | . 1 . . . 2 3 1 . 2 . . 1 . 1 . 4 3 . . . 3 1 4 . 4 8 . 2 4 Max in Single Turn 3 | . 1 . . . 2 1 1 . 1 . . 1 . 1 . 2 1 . . . 2 1 1 . 1 2 . 2 3 Garrison Access 6 | . . . . . . 1 . . . . . 2 . . . . . . . . . 1 . . . 1 . 1 . Network Hub 2 | . . . . . . . . . . . . . . . . . . . . . . . . . . 2 . . . Energy Cycler 1 | . . . . . . . . . . . . . . . . . . . . . . . 1 . . . . . . Machines Repaired . | . . . . . . . . . . . . . . . . . . . . . . . . . . . . . . Machines Dismantled . | . . . . . . . . . . . . . . . . . . . . . . . . . . . . . . Machines Sabotaged . | . . . . . . . . . . . . . . . . . . . . . . . . . . . . . . Overloaded Fab Kills . | . . . . . . . . . . . . . . . . . . . . . . . . . . . . . . Hacking | -11 -10 -10 -9 -9 -8 -8 -7 -7 -7 -7 -6 -6 -6 -6 -6 -5 -5 -5 -5 -5 -4 -4 -4 -4 -4 -4 -3 -2 -2 --------- Run | Yrd Mat Min Mat Min Mat Sto Fac Low Low Dat Pro Fac Low Low Zio Pro Fac Upp Upp Zhi Pro Fac Ext Cet Arc Hub Res Res Tes Machines Accessed 83 | . 9 2 12 . 9 9 10 . 1 3 . 17 . . . . 2 1 . 4 1 2 . . . . . 1 . Terminals 39 | . 7 . 8 . 5 7 5 . . . . 6 . . . . . . . . 1 . . . . . . . . Fabricators 8 | . . . . . . . 3 . . . . 4 . . . . . . . . . 1 . . . . . . . Repair Stations 4 | . . . . . 1 1 . . . . . 2 . . . . . . . . . . . . . . . . . Recycling Units 4 | . 2 . 2 . . . . . . . . . . . . . . . . . . . . . . . . . . Scanalyzers 9 | . . . 2 . 2 . 1 . . . . 2 . . . . 1 . . . . . . . . . . 1 . Garrison Access 8 | . . . . . 1 1 1 . . . . 3 . . . . 1 . . . . 1 . . . . . . . Total Hacks 247 | . 28 2 37 . 29 28 24 . 1 22 . 40 . . . . 6 1 . 16 1 6 . . . . . 6 . Successful 151 | . 13 2 21 . 12 19 11 . 1 22 . 23 . . . . 3 1 . 16 1 3 . . . . . 3 . Failed 92 | . 14 . 15 . 16 9 13 . . . . 16 . . . . 3 . . . . 3 . . . . . 3 . Catastrophic 9 | . 2 . . . . 2 3 . . . . . . . . . 1 . . . . 1 . . . . . . . Database Lockouts 4 | . 1 . 1 . 1 . . . . . . 1 . . . . . . . . . . . . . . . . . Manual 176 | . 24 . 29 . 8 12 9 . . . . 8 . . . . 21 . . . . . 6 . . 20 6 20 13 Terminals 125 | . 25 . 28 . 21 21 11 . . . . 18 . . . . . . . . 1 . . . . . . . . Fabricators 22 | . . . . . . . 9 . . . . 9 . . . . . . . . . 4 . . . . . . . Repair Stations 13 | . . . . . 2 6 . . . . . 5 . . . . . . . . . . . . . . . . . Recycling Units 5 | . 3 . 2 . . . . . . . . . . . . . . . . . . . . . . . . . . Scanalyzers 25 | . . . 7 . 3 . 3 . . . . 3 . . . . 3 . . . . . . . . . . 6 . Garrison Access 15 | . . . . . 3 1 1 . . . . 5 . . . . 3 . . . . 2 . . . . . . . Terminal Hacks 76 | . 3 2 5 . 7 9 2 . 1 22 . 7 . . . . . 1 . 16 1 . . . . . . . . Record 11 | . . . . . . . . . . 6 . . . . . . . . . 5 . . . . . . . . . Part Schematic 12 | . 1 . . . . . . . . 8 . . . . . . . . . 3 . . . . . . . . . Robot Schematic 5 | . . . . . . . . . . 5 . . . . . . . . . . . . . . . . . . . Robot Analysis 7 | . . . 2 . . . . . . . . 1 . . . . . . . 4 . . . . . . . . . Prototype ID Bank 20 | . 2 . 3 . 2 4 . . . 3 . 2 . . . . . . . 4 . . . . . . . . . Open Door 7 | . . 2 . . . 2 . . 1 . . . . . . . . 1 . . 1 . . . . . . . . Branch Access Points 3 | . . . . . 1 . 1 . . . . 1 . . . . . . . . . . . . . . . . . Terminal Index 2 | . . . . . . 1 1 . . . . . . . . . . . . . . . . . . . . . . Fabricator Index 1 | . . . . . . . . . . . . 1 . . . . . . . . . . . . . . . . . Alert Level 1 | . . . . . 1 . . . . . . . . . . . . . . . . . . . . . . . . Unreport Threat 3 | . . . . . 2 1 . . . . . . . . . . . . . . . . . . . . . . . Recall Investigation 1 | . . . . . . . . . . . . 1 . . . . . . . . . . . . . . . . . Registered Components 3 | . . . . . 1 1 . . . . . 1 . . . . . . . . . . . . . . . . . Fabricator Hacks 14 | . . . . . . . 6 . . . . 6 . . . . . . . . . 2 . . . . . . . Network Status 4 | . . . . . . . 2 . . . . 1 . . . . . . . . . 1 . . . . . . . Load Schematic 5 | . . . . . . . 1 . . . . 3 . . . . . . . . . 1 . . . . . . . Build 5 | . . . . . . . 3 . . . . 2 . . . . . . . . . . . . . . . . . Repair Station Hacks 12 | . . . . . 2 6 . . . . . 4 . . . . . . . . . . . . . . . . . Scan Component 6 | . . . . . 1 3 . . . . . 2 . . . . . . . . . . . . . . . . . Repair 6 | . . . . . 1 3 . . . . . 2 . . . . . . . . . . . . . . . . . Recycling Unit Hacks . | . . . . . . . . . . . . . . . . . . . . . . . . . . . . . . Scanalyzer 13 | . . . 3 . 2 . 1 . . . . 1 . . . . 3 . . . . . . . . . . 3 . Insert Component 3 | . . . 2 . . . . . . . . . . . . . . . . . . . . . . . . 1 . Analyze 1 | . . . 1 . . . . . . . . . . . . . . . . . . . . . . . . . . Retrieve Study 9 | . . . . . 2 . 1 . . . . 1 . . . . 3 . . . . . . . . . . 2 . Garrison Access Hacks 4 | . . . . . . 1 . . . . . 2 . . . . . . . . . 1 . . . . . . . Seal Access 4 | . . . . . . 1 . . . . . 2 . . . . . . . . . 1 . . . . . . . Unauthorized Hacks 32 | . 10 . 13 . 1 3 2 . . . . 3 . . . . . . . . . . . . . . . . . Terminals 24 | . 8 . 10 . 1 3 . . . . . 2 . . . . . . . . . . . . . . . . . Assimilate 3 | . . . 2 . . . . . . . . 1 . . . . . . . . . . . . . . . . . Botnet 9 | . 3 . 2 . 1 2 . . . . . 1 . . . . . . . . . . . . . . . . . Operators 2 | . . . 1 . . 1 . . . . . . . . . . . . . . . . . . . . . . . Skim 10 | . 5 . 5 . . . . . . . . . . . . . . . . . . . . . . . . . . Fabricators 3 | . . . . . . . 2 . . . . 1 . . . . . . . . . . . . . . . . . Liberate 1 | . . . . . . . 1 . . . . . . . . . . . . . . . . . . . . . . Haulers 1 | . . . . . . . . . . . . 1 . . . . . . . . . . . . . . . . . Download 1 | . . . . . . . 1 . . . . . . . . . . . . . . . . . . . . . . Repair Stations . | . . . . . . . . . . . . . . . . . . . . . . . . . . . . . . Recycling Units 4 | . 2 . 2 . . . . . . . . . . . . . . . . . . . . . . . . . . Tunnel 4 | . 2 . 2 . . . . . . . . . . . . . . . . . . . . . . . . . . Scanalyzers 1 | . . . 1 . . . . . . . . . . . . . . . . . . . . . . . . . . Extract 1 | . . . 1 . . . . . . . . . . . . . . . . . . . . . . . . . . Garrison Access . | . . . . . . . . . . . . . . . . . . . . . . . . . . . . . . Data Cores Recovered . | . . . . . . . . . . . . . . . . . . . . . . . . . . . . . . Used . | . . . . . . . . . . . . . . . . . . . . . . . . . . . . . . Hacking Detections 55 | . 8 . 9 . 6 6 9 . . . . 14 . . . . 2 . . . . 1 . . . . . . . Full Trace Events 10 | . . . 1 . 2 . 4 . . . . 2 . . . . 1 . . . . . . . . . . . . Feedback Events 1 | . . . . . . . 1 . . . . . . . . . . . . . . . . . . . . . . Corruption 1 | . . . . . . . 1 . . . . . . . . . . . . . . . . . . . . . . Feedback Blocked . | . . . . . . . . . . . . . . . . . . . . . . . . . . . . . . Robot Schematics Acquired 7 | . . . . . . . . . . 5 . . . . 2 . . . . . . . . . . . . . . Robots Built . | . . . . . . . . . . . . . . . . . . . . . . . . . . . . . . Authchips . | . . . . . . . . . . . . . . . . . . . . . . . . . . . . . . Time . | . . . . . . . . . . . . . . . . . . . . . . . . . . . . . . Total Robot Build Rating . | . . . . . . . . . . . . . . . . . . . . . . . . . . . . . . Part Schematics Acquired 66 | . 1 . 2 . . . . . . 8 . . . . 13 . 11 . . 3 . . . . . 12 . . 16 Parts Built 6 | . . . . . . . 4 . . . . 2 . . . . . . . . . . . . . . . . . Authchips . | . . . . . . . . . . . . . . . . . . . . . . . . . . . . . . Time 563 | . . . . . . . 327 . . . . 236 . . . . . . . . . . . . . . . . . Total Part Build Rating 33 | . . . . . . . 22 . . . . 11 . . . . . . . . . . . . . . . . . Part Studies Acquired 9 | . . . . . 2 . 1 . . . . 1 . . . . 3 . . . . . . . . . . 2 . Parts Repaired 5 | . . . . . 1 3 . . . . . 1 . . . . . . . . . . . . . . . . . Time 209 | . . . . . 32 108 . . . . . 69 . . . . . . . . . . . . . . . . . Parts Recycled . | . . . . . . . . . . . . . . . . . . . . . . . . . . . . . . Recycled Matter . | . . . . . . . . . . . . . . . . . . . . . . . . . . . . . . Retrieved Matter . | . . . . . . . . . . . . . . . . . . . . . . . . . . . . . . Retrieved Components . | . . . . . . . . . . . . . . . . . . . . . . . . . . . . . . Parts Scanalyzed 1 | . . . 1 . . . . . . . . . . . . . . . . . . . . . . . . . . Part Schematics Acquired 1 | . . . 1 . . . . . . . . . . . . . . . . . . . . . . . . . . Parts Damaged 1 | . . . 1 . . . . . . . . . . . . . . . . . . . . . . . . . . Bothacking | -11 -10 -10 -9 -9 -8 -8 -7 -7 -7 -7 -6 -6 -6 -6 -6 -5 -5 -5 -5 -5 -4 -4 -4 -4 -4 -4 -3 -2 -2 ------------ Run | Yrd Mat Min Mat Min Mat Sto Fac Low Low Dat Pro Fac Low Low Zio Pro Fac Upp Upp Zhi Pro Fac Ext Cet Arc Hub Res Res Tes Used RIF Installer . | . . . . . . . . . . . . . . . . . . . . . . . . . . . . . . Robots Hacked . | . . . . . . . . . . . . . . . . . . . . . . . . . . . . . . Non-combat . | . . . . . . . . . . . . . . . . . . . . . . . . . . . . . . Combat . | . . . . . . . . . . . . . . . . . . . . . . . . . . . . . . Robot Hacks Applied . | . . . . . . . . . . . . . . . . . . . . . . . . . . . . . . Relay Couplers Released 5 | . . . . . . . . . . . . . . . . . . . . . . 2 . . . 1 . 2 . Machine Destruction 5 | . . . . . . . . . . . . . . . . . . . . . . 2 . . . 1 . 2 . Fabnet Peak Effective % . | . . . . . . . . . . . . . . . . . . . . . . . . . . . . . . Robots Rewired 29 | . . . . . . . . . 2 . . . . 1 . . . . . . 11 . 14 . . . . . 1 Allies Hacked 1 | . . . . . . . 1 . . . . . . . . . . . . . . . . . . . . . . Hacks Repelled . | . . . . . . . . . . . . . . . . . . . . . . . . . . . . . . Allies | -11 -10 -10 -9 -9 -8 -8 -7 -7 -7 -7 -6 -6 -6 -6 -6 -5 -5 -5 -5 -5 -4 -4 -4 -4 -4 -4 -3 -2 -2 -------- Run | Yrd Mat Min Mat Min Mat Sto Fac Low Low Dat Pro Fac Low Low Zio Pro Fac Upp Upp Zhi Pro Fac Ext Cet Arc Hub Res Res Tes Total Allies 84 | . . 5 2 2 . 12 . . 2 . . 1 . 1 4 . 3 . . . 11 . 28 . . 6 3 3 1 Largest Group 20 | . . 5 4 2 2 10 8 . 2 . . 1 . 1 5 5 2 . . . 6 6 20 15 7 6 3 2 1 Highest-Rated Group 1250 | . . 102 78 45 45 173 138 . 48 . . 10 . 32 190 190 170 . . . 288 288 1250 757 325 381 206 244 90 Highest-Rated Ally 159 | . . 31 31 31 31 31 29 . 32 . . 10 . 32 43 43 146 . . . 50 50 159 97 51 103 103 122 90 Zionite Dispatches 12 | . . . . . . . . . . . . . . . . . 2 . . . . . 3 . . 3 2 2 . Heavy 5 | . . . . . . . . . . . . . . . . . 1 . . . . . 1 . . 1 1 1 . Light 1 | . . . . . . . . . . . . . . . . . . . . . . . 1 . . . . . . Fire 2 | . . . . . . . . . . . . . . . . . . . . . . . 1 . . 1 . . . Demo 1 | . . . . . . . . . . . . . . . . . . . . . . . . . . 1 . . . Hero 1 | . . . . . . . . . . . . . . . . . 1 . . . . . . . . . . . . Infowar Resupply 2 | . . . . . . . . . . . . . . . . . . . . . . . . . . . 1 1 . Total Orders 9 | . . . . . . . . . . . . . . . . . 5 1 . . . . . . . . 2 1 . DROP 2 | . . . . . . . . . . . . . . . . . . . . . . . . . . . 1 1 . EXPLORE 6 | . . . . . . . . . . . . . . . . . 4 1 . . . . . . . . 1 . . RETURN 1 | . . . . . . . . . . . . . . . . . 1 . . . . . . . . . . . . Ally Attacks 533 | . . 30 14 . 14 60 69 . 1 . . . . . . 34 27 . . . 5 36 130 19 9 25 28 21 11 Total Damage 14070 | . . 337 107 . 210 818 718 . 52 . . . . . . 848 711 . . . . 896 3747 639 250 1252 957 2096 432 Kills 99 | . . 8 2 . 3 8 8 . . . . . . . . 6 3 . . . . 10 19 5 4 8 4 10 1 Allies Corrupted 3 | . . . . . . . . . . . . . . . . . 2 . . . . 1 . . . . . . . Allies Melted 3 | . . . . . . . . . . . . . . . . . . . . . . . 2 . 1 . . . . Intel | -11 -10 -10 -9 -9 -8 -8 -7 -7 -7 -7 -6 -6 -6 -6 -6 -5 -5 -5 -5 -5 -4 -4 -4 -4 -4 -4 -3 -2 -2 ------- Run | Yrd Mat Min Mat Min Mat Sto Fac Low Low Dat Pro Fac Low Low Zio Pro Fac Upp Upp Zhi Pro Fac Ext Cet Arc Hub Res Res Tes Active Infowar (turns) 19206 | 24 1079 714 . 573 1031 913 1375 . . . . 2193 390 904 1226 986 1497 875 487 251 2134 351 85 . 35 494 905 644 40 Optics 4656 | . . . . . . . . . . . . . . . . . 1480 875 487 251 1563 . . . . . . . . Sensors 9158 | . . . . . . . . . . . . 1707 390 884 1225 900 602 643 487 247 1253 327 85 . . . 408 . . Terrain 6 | . . . . . . . . . . . . 6 . . . . . . . . . . . . . . . . . Structural 3476 | . . . . . 31 31 . . . . . 201 . . . . 1 53 487 247 1311 135 . . 35 494 450 . . Seismic 5286 | 24 1079 714 . 573 1000 882 1014 . . . . . . . . . . . . . . . . . . . . . . T.N.C. 709 | . . . . . . . 361 . . . . . . . . . 348 . . . . . . . . . . . . Machine Analysis 10006 | . . . . . . . . . . . . 1149 390 904 1226 986 1497 875 487 251 1557 . . . . . . 644 40 Triangulation 240 | . . . . . . . . . . . . . . . . . . . . . . . . . . . 240 . . Cloaking 35 | . . . . . . . . . . . . . . . . . . . . . . . . . . . 35 . . Jamming 4342 | . . . . . . . . . . . . 152 . 20 5 55 379 696 487 251 2134 . . . . . . 163 . ECM 544 | . . . . . . . . . . . . 177 . 317 1 6 42 . . . . . . . . . . 1 . Robot Analysis Total 7 | . . . 2 . . . . . . . . 1 . . . . . . . 4 . . . . . . . . . Derelict Logs Recovered 17 | . . 1 . 3 . . . 2 2 . 2 . . . 2 2 . 2 1 . . . . . . . . . . Drone Launches 10 | . . . . . . . . . . . . . . . . . 7 1 . . . . . . . . 2 . . Drone Recoveries 7 | . . . . . . . . . . . . . . . . . 4 1 . . . . . . . . 2 . . Zionite Intel Received 12 | . . . . . . . . . . . . . . . . . 3 . . . . . . . . 3 . 3 3 Main Access 1 | . . . . . . . . . . . . . . . . . . . . . . . . . . . . 1 . Emergency Access 1 | . . . . . . . . . . . . . . . . . . . . . . . . . . . . . 1 Guard Positions 1 | . . . . . . . . . . . . . . . . . . . . . . . . . . 1 . . . Component Stockpiles 1 | . . . . . . . . . . . . . . . . . . . . . . . . . . . . . 1 Prototype Stockpiles 1 | . . . . . . . . . . . . . . . . . . . . . . . . . . . . 1 . Component Schematics 2 | . . . . . . . . . . . . . . . . . . . . . . . . . . 1 . . 1 Prototype Schematics 1 | . . . . . . . . . . . . . . . . . 1 . . . . . . . . . . . . Unaware Analyses 1 | . . . . . . . . . . . . . . . . . 1 . . . . . . . . . . . . Active Terminals 2 | . . . . . . . . . . . . . . . . . . . . . . . . . . 1 . 1 . Depthwide Sectors/-1 1 | . . . . . . . . . . . . . . . . . 1 . . . . . . . . . . . . Exploration | -11 -10 -10 -9 -9 -8 -8 -7 -7 -7 -7 -6 -6 -6 -6 -6 -5 -5 -5 -5 -5 -4 -4 -4 -4 -4 -4 -3 -2 -2 ------------- Run | Yrd Mat Min Mat Min Mat Sto Fac Low Low Dat Pro Fac Low Low Zio Pro Fac Upp Upp Zhi Pro Fac Ext Cet Arc Hub Res Res Tes Turns Passed 29488 | 110 1243 1520 1381 693 1241 1259 2763 769 1095 144 764 2802 390 904 1226 986 1497 875 487 251 2251 412 1681 237 189 494 979 730 115 Spaces Moved 15623 | 46 603 748 581 399 643 566 1442 450 606 87 432 1647 299 622 972 650 780 434 223 171 427 382 791 136 84 277 500 463 162 Core 517 | 2 . . . . . . . . . . . . . . . . . . . . 96 91 . . . . 90 238 . Treads 7425 | 44 603 748 581 399 643 566 1069 450 606 87 432 304 . . . . . . . . . 108 332 . . . 258 195 . Legs 6344 | . . . . . . . . . . . . 1343 299 622 972 650 522 406 223 171 331 . 156 136 84 277 152 . . Wheels 962 | . . . . . . . 373 . . . . . . . . . 258 28 . . . . 303 . . . . . . Hover 110 | . . . . . . . . . . . . . . . . . . . . . . . . . . . . 30 80 Flight 265 | . . . . . . . . . . . . . . . . . . . . . . 183 . . . . . . 82 Fastest Speed 18 | 50 160 160 160 160 152 152 115 160 160 160 160 105 117 117 117 117 95 140 183 113 50 32 110 110 110 108 50 50 18 Average Speed 145 | 155 160 160 160 160 155 154 148 160 160 160 160 121 117 117 117 117 117 180 183 115 452 83 151 110 110 109 130 96 42 Slowest Speed 1150 | 160 160 160 160 160 160 156 160 160 160 160 160 160 117 186 117 117 450 200 183 183 1150 272 252 110 110 187 410 170 85 Overloaded Moves 5 | . . . . . . . . . . . . . . . . . . . . . . . . . . . . . 5 Propulsion Burnouts . | . . . . . . . . . . . . . . . . . . . . . . . . . . . . . . Robots Hopped 10 | . . . . . . . . . . . . . . . . . . . . . . . . . . . . . 10 Potential Cave-ins 16 | . . . . . . . 3 . . . . 2 . 2 . 3 3 . 3 . . . . . . . . . . Cave-ins Triggered . | . . . . . . . . . . . . . . . . . . . . . . . . . . . . . . Teleports 1 | . . . . . . . . . . . . . . . . . . . . . . . . . . . 1 . . Exploration Rate (%) 57 | 3 93 97 60 83 57 93 38 65 79 68 65 54 47 82 89 79 24 85 43 61 41 8 89 48 72 43 19 14 24 Regions Visited 29 Branch Regions 20 Pre-discovered Areas 24 | . 2 . 4 . . 1 . . 1 1 . . . . 3 . 9 . . 3 . . . . . . . . . Known Exits Taken 16 | . . 1 1 1 1 1 1 . . . . 1 1 1 1 1 1 1 1 1 . . . . . . . 1 . Unknown Exits Taken 13 | 1 1 . . . . . . 1 1 1 1 . . . . . . . . . 1 1 1 1 1 1 1 . . Scrap Searched 31 | . . 2 . 1 . . . 9 4 . 1 . 2 1 2 5 . 3 . . 1 . . . . . . . . Spaces Dug 288 | . . . 12 2 54 1 13 1 . . 5 30 5 13 . 36 33 24 4 . 4 2 3 . . 1 20 25 . Terrain Destroyed 1536 | . . 4 44 2 99 77 44 66 16 . 44 105 8 88 . 65 105 50 14 . 23 12 21 5 10 491 97 35 11 Melee 33 | . . . . . 4 . . . . . . 25 . . . . . . . . . 2 . . . . 2 . . Projectile 399 | . . 4 23 2 19 31 44 1 . . 7 34 8 38 . 8 49 15 14 . 14 10 21 5 10 9 15 18 . AOE 1103 | . . . 21 . 76 46 . 65 16 . 37 46 . 50 . 57 55 35 . . 9 . . . . 482 80 17 11 Terrain Rammed . | . . . . . . . . . . . . . . . . . . . . . . . . . . . . . . Walls Destroyed . | . . . . . . . . . . . . . . . . . . . . . . . . . . . . . . Machines Disabled . | . . . . . . . . . . . . . . . . . . . . . . . . . . . . . . Actions | -11 -10 -10 -9 -9 -8 -8 -7 -7 -7 -7 -6 -6 -6 -6 -6 -5 -5 -5 -5 -5 -4 -4 -4 -4 -4 -4 -3 -2 -2 --------- Run | Yrd Mat Min Mat Min Mat Sto Fac Low Low Dat Pro Fac Low Low Zio Pro Fac Upp Upp Zhi Pro Fac Ext Cet Arc Hub Res Res Tes Total 20358 | 63 779 1034 883 434 827 855 1851 493 688 92 481 2205 327 741 1058 817 1215 506 278 207 627 444 1202 212 131 375 713 636 184 Wait 1958 | . 74 228 152 20 69 188 168 2 1 . 29 225 15 48 71 111 195 28 40 3 35 10 108 41 16 12 33 26 10 Move 15578 | 45 602 747 580 398 642 565 1441 449 605 86 431 1646 298 621 971 649 779 433 222 170 426 381 790 135 83 276 499 462 146 Hop 6 | . . . . . . . . . . . . . . . . . . . . . . . . . . . . . 6 Pick Up 286 | 2 20 9 20 1 24 12 33 10 6 . 2 41 1 2 4 3 25 3 2 4 . 4 19 2 3 3 26 4 1 Fast Attach 252 | 7 . 3 4 3 1 6 11 2 2 2 . 18 . . 2 3 31 4 . 7 5 18 36 7 . 11 28 31 10 Attach 124 | . . 2 3 . 3 . 15 1 1 1 1 18 . 2 . 1 19 5 1 2 6 4 4 1 1 12 12 9 . Detach 57 | . . . 1 . . . 2 1 . 1 . 2 . . . . 13 2 . 2 . 2 9 1 1 5 6 8 1 Swap 300 | . 17 7 16 2 26 12 15 8 12 . 3 66 2 7 5 16 16 3 1 . 15 1 11 5 3 7 20 1 3 Drop 349 | . 9 13 30 2 25 18 26 12 7 2 . 40 1 2 4 4 28 8 . 9 10 10 34 13 2 3 28 9 . Fire 972 | 9 48 18 74 8 28 52 129 8 37 . 15 94 10 49 1 24 103 20 12 . 54 12 33 7 22 42 23 39 1 Melee 167 | . . . . . 9 . . . . . . 50 . . . 6 . . . 10 5 2 1 . . 4 38 38 4 Ram 10 | . . . . . . . 1 . . . . . . . . . 3 . . . . . . . . . . 6 . Kick 8 | . . . . . . . . . . . . 4 . . . . 1 . . . 1 . 1 . . . . 1 . Crush 34 | . 9 7 3 . . 2 10 . . . . 1 . . . . . . . . . . . . . . . 2 . Escape Stasis 6 | . . . . . . . . . . . . . . . . . . . . . . . 6 . . . . . . Rewire 249 | . . . . . . . . . 17 . . . . 10 . . . . . . 70 . 150 . . . . . 2 Trap 2 | . . . . . . . . . . . . . . . . . 2 . . . . . . . . . . . . Miscellaneous . | . . . . . . . . . . . . . . . . . . . . . . . . . . . . . . Route ------- -11/Scrapyard -10/Materials (discovered 5 exits: *Mat x3 / *Min x2) -10/Mines (discovered 4 exits: *Mat x2 / *Exi / *Sub) -9/Materials (discovered 4 exits: *Mat x2 / *Min x2) -9/Mines (discovered 2 exits: *Mat x2) -8/Materials (discovered 3 exits: *Fac x2 / *Sto) -8/Storage (discovered 2 exits: *Fac / Rec) -7/Factory (discovered 4 exits: *Fac x2 / *Low x2) -7/Lower Caves -7/Lower Caves (discovered 2 exits: *Fac / *Dat) -7/Data Miner -6/Proximity Caves -6/Factory (discovered 4 exits: *Fac x2 / *Low x2) -6/Lower Caves -6/Lower Caves -6/Zion (discovered 2 exits: Dee / *Pro) -5/Proximity Caves -5/Factory -5/Upper Caves -5/Upper Caves -5/Zhirov -4/Proximity Caves -4/Factory -4/Extension (discovered 2 exits: *Res / *Cet) -4/Cetus -4/Archives (discovered 2 exits: *Hub x2) -4/Hub_04(d) -3/Research (discovered 2 exits: *Res x2) -2/Research (discovered 4 exits: Acc x3 / *Tes) -2/Testing History --------- Turn | Location | Event 10 | -11/Scrapyard | Discovered new exit (range 15) 111 | -11/Scrapyard | Entered Materials 303 | -10/Materials | Discovered new exit (range 16) 306 | -10/Materials | Build established: Mutant 679 | -10/Materials | Discovered new exit (range 16) 873 | -10/Materials | Learned 4 Subcaves zone layouts 943 | -10/Materials | Learned Storage stockpile data 1057 | -10/Materials | Learned 4 Recycling zone layouts 1070 | -10/Materials | Discovered new exit (range 8) 1081 | -10/Materials | Central database locked down 1100 | -10/Materials | Identified exit to Materials 1134 | -10/Materials | Learned location of 2 exits from Mines 1179 | -10/Materials | Learned location of 2 exits from Subcaves 1222 | -10/Materials | Discovered new exit (range 13) 1236 | -10/Materials | Learned 2 Mines zone layouts 1302 | -10/Materials | Learned location of 1 exit from Recycling 1354 | -10/Materials | Entered Mines 1355 | -10/Mines | Assembled infested the area 1356 | -10/Mines | Identified exit to Subcaves 1356 | -10/Mines | Identified exit to Exiles 1368 | -10/Mines | Met a Derelict bent on vengeance 1449 | -10/Mines | Found a damaged Exp. Sensor Array with a note attached 1453 | -10/Mines | Found Prototype Device 1453 | -10/Mines | Identified Exp. Sensor Array 1733 | -10/Mines | A weapon hastily lodged in a ceiling crevice suddenly fell to the ground 1827 | -10/Mines | Learned 8 Materials zone layouts 1846 | -10/Mines | Assisted by bots powering up and referring to "LRC-V3" 1870 | -10/Mines | Escorted by a lone wolf Derelict 1916 | -10/Mines | Met a Derelict shopkeep closing up shop 1977 | -10/Mines | Met a Derelict testing a Signal Generator 1977 | -10/Mines | Discovered exit to Materials (range 7) 2041 | -10/Mines | Met a Derelict who couldn't figure out how to use a Trap Extractor 2294 | -10/Mines | Received a Rocket Launcher from a helpful Derelict 2874 | -10/Mines | Entered Materials 2874 | -9/Materials | Accompanied by 4 allies 2874 | -9/Materials | Evolved 2 slots: Propulsion x1, Weapon x1 2875 | -9/Materials | Identified exit to Mines 3043 | -9/Materials | Lost 4 allies 3197 | -9/Materials | Build established: Gunner 3500 | -9/Materials | Discovered new exit (range 9) 3698 | -9/Materials | Build established: Scavenger-Gunner 3903 | -9/Materials | Central database locked down 3967 | -9/Materials | Learned 2 Materials zone layouts 4070 | -9/Materials | Learned location of Mines (-9) 4074 | -9/Materials | First assault squad dispatched 4105 | -9/Materials | Learned location of 1 exit from Storage 4147 | -9/Materials | Learned Recycling recycling unit intel 4170 | -9/Materials | Identified exit to Materials 4203 | -9/Materials | Loaded intel: 16 trap records 4245 | -9/Materials | Learned Storage stockpile data 4255 | -9/Materials | Entered Mines 4329 | -9/Mines | Learned Materials emergency access door positions 4347 | -9/Mines | Build established: Gunner 4409 | -9/Mines | Learned Materials stockpile data 4410 | -9/Mines | Learned location of 1 exit from Materials 4437 | -9/Mines | Discovered exit to Materials (range 7) 4924 | -9/Mines | Discovered exit to Materials (range 9) 4948 | -9/Mines | Entered Materials 4948 | -8/Materials | Accompanied by 2 allies 4948 | -8/Materials | Evolved 2 slots: Propulsion x1, Utility x1 4949 | -8/Materials | Identified exit to Factory 4953 | -8/Materials | Led the pair of lost Derelicts to an unsafe place 5039 | -8/Materials | Garrison activated, responded to threat 5447 | -8/Materials | Central database locked down 5534 | -8/Materials | Identified exit to Storage 5576 | -8/Materials | Discovered exit to Factory (range 12) 5624 | -8/Materials | Repaired Imp. Treads 6189 | -8/Materials | Entered Storage 6190 | -8/Storage | Identified exit to Recycling 6334 | -8/Storage | Garrison activated, responded to threat 6471 | -8/Storage | Learned location of Armory (-3) 6603 | -8/Storage | Met a pair of Derelict thieves 6834 | -8/Storage | Assisted by bots powering up and referring to "LRC-V3" 7118 | -8/Storage | Build established: Commander-Gunner 7218 | -8/Storage | Repaired Hvy. Ion Cannon 7258 | -8/Storage | Repaired Adv. Treads 7285 | -8/Storage | Repaired Transport Network Coupler 7448 | -8/Storage | Entered Factory 7448 | -7/Factory | Accompanied by 8 allies 7448 | -7/Factory | Evolved 2 slots: Power x1, Propulsion x1 7711 | -7/Factory | Found Prototype Launcher 7711 | -7/Factory | Identified Rocket Array 7712 | -7/Factory | Fabricated Adv. Signal Interpreter? 7959 | -7/Factory | Fabricated Exp. Sensor Array? 8236 | -7/Factory | Lost 4 allies 8389 | -7/Factory | Fabricated Lgt. Armored Exoskeleton? 8499 | -7/Factory | Lost 3 allies 8502 | -7/Factory | Build established: Scavenger-Gunner 8978 | -7/Factory | Lost 3 parts (3n) 9075 | -7/Factory | Allied Derelicts emerged from ambush trap array 9250 | -7/Factory | Discovered new exit (range 13) 9413 | -7/Factory | Build established: Gunner 9532 | -7/Factory | Garrison activated, responded to threat 9580 | -7/Factory | Identified exit to Lower Caves 9765 | -7/Factory | Garrison activated, responded to threat 9848 | -7/Factory | First assault squad dispatched 9874 | -7/Factory | Lost 3 parts (1p2n) 9994 | -7/Factory | Discovered new exit (range 7) 10079 | -7/Factory | Lost 3 parts (3n) 10211 | -7/Factory | Entered Lower Caves 10212 | -7/Lower Caves | Encountered a Warlord checkpoint 10526 | -7/Lower Caves | Learned location of 1 exit from Factory 10664 | -7/Lower Caves | Learned Factory emergency access door positions 10838 | -7/Lower Caves | Discovered new exit (range 10) 10980 | -7/Lower Caves | Entered another Lower Caves area 11038 | -7/Lower Caves | Discovered new exit (range 10) 11257 | -7/Lower Caves | Learned Factory security intel 11305 | -7/Lower Caves | Attracted the attention of an 0b10 outpost 11310 | -7/Lower Caves | Core integrity fell below 50% 11335 | -7/Lower Caves | Destroyed 7 combat bots 11350 | -7/Lower Caves | Encountered a Warlord checkpoint 11435 | -7/Lower Caves | Spotted B-75 Beast 11441 | -7/Lower Caves | Lost 3 allies 11581 | -7/Lower Caves | Attracted the attention of an 0b10 checkpoint 12037 | -7/Lower Caves | Found Alien Artifact 12067 | -7/Lower Caves | Discovered new exit (range 6) 12075 | -7/Lower Caves | Entered Data Miner 12077 | -7/Data Miner | Discovered new exit (range 6) 12107 | -7/Data Miner | Met Data Miner 12135 | -7/Data Miner | Learned location of Section 7 (-2) 12135 | -7/Data Miner | Acquired the access code to Warlord's prototype stash 12157 | -7/Data Miner | Received God Mode back door access code from Data Miner 12219 | -7/Data Miner | Entered Proximity Caves 12497 | -6/Proximity Caves | Build established: Scavenger-Gunner 12758 | -6/Proximity Caves | Discovered new exit (range 15) 12777 | -6/Proximity Caves | Learned location of 1 exit from Lower Caves 12983 | -6/Proximity Caves | Entered Factory 12983 | -6/Factory | Evolved 2 slots: Utility x2 12984 | -6/Factory | Identified exit to Factory 13057 | -6/Factory | Watched by a mysterious "MATRIX" hacker. 13269 | -6/Factory | Build established: Scavenger-Skirmisher 13281 | -6/Factory | Discovered new exit (range 8) 13292 | -6/Factory | Identified exit to Lower Caves 13650 | -6/Factory | Discovered exit to Factory (range 15) 13685 | -6/Factory | Destroyed 8 combat bots 13818 | -6/Factory | Lost 4 parts (1p1n1u1w) 14268 | -6/Factory | Build established: Mutant 14494 | -6/Factory | Repaired Flexi-carbon Leg+ 14720 | -6/Factory | Fabricated Combat Drone Bay (x1) 14729 | -6/Factory | Lost 3 parts (1p2w) 15190 | -6/Factory | System corruption reached 10% 15410 | -6/Factory | Central database locked down 15433 | -6/Factory | First assault squad dispatched 15613 | -6/Factory | Fabricated Lgt. Regenerative Plating (x1) 15785 | -6/Factory | Entered Lower Caves 15786 | -6/Lower Caves | Identified exit to Lower Caves 15839 | -6/Lower Caves | Encountered a Warlord checkpoint 16092 | -6/Lower Caves | Build established: Skirmisher 16175 | -6/Lower Caves | Entered another Lower Caves area 16304 | -6/Lower Caves | Encountered a Warlord checkpoint 16675 | -6/Lower Caves | Spotted B-75 Beast 16996 | -6/Lower Caves | Attracted the attention of an 0b10 outpost 17027 | -6/Lower Caves | Discovered new exit (range 14) 17058 | -6/Lower Caves | Identified exit to Zion 17079 | -6/Lower Caves | Entered Zion 17079 | -6/Zion | Accompanied by 1 ally 17110 | -6/Zion | System corruption cleaned by Quarantine Array 17133 | -6/Zion | Found CR-A16's Pointy Stick 17251 | -6/Zion | Discovered new exit (range 11) 17265 | -6/Zion | Identified exit to Proximity Caves 17357 | -6/Zion | Given A8's code to call for help 17523 | -6/Zion | Identified exit to Deep Caves 17723 | -6/Zion | Met Imprinter 17743 | -6/Zion | Imprinted 17745 | -6/Zion | Declared Zion's savior 17913 | -6/Zion | Found Prototype Special Weapon 17913 | -6/Zion | Identified RU-N14's Throwing Claymores 17919 | -6/Zion | Found RU-N14's Throwing Claymores 17997 | -6/Zion | Visited the Megawrench Repair Shop 17997 | -6/Zion | Megawrench repaired 12 parts 18305 | -6/Zion | Entered Proximity Caves 18305 | -5/Proximity Caves | Accompanied by 5 allies 18383 | -5/Proximity Caves | Learned Factory security intel 18407 | -5/Proximity Caves | Spotter reported a threat 18422 | -5/Proximity Caves | Spotter reported a threat 18428 | -5/Proximity Caves | Learned Factory emergency access door positions 18606 | -5/Proximity Caves | Spotted B-75 Beast 18641 | -5/Proximity Caves | Allies destroyed B-75 Beast 18874 | -5/Proximity Caves | Attracted the attention of an 0b10 checkpoint 19282 | -5/Proximity Caves | Discovered exit to Factory (range 3) 19291 | -5/Proximity Caves | Entered Factory 19291 | -5/Factory | Evolved 2 slots: Utility x2 19446 | -5/Factory | Zion hero teleported in (NK-0LA) 19469 | -5/Factory | Noticed a derelict Sapper rigging charges 19566 | -5/Factory | Retrieved Zion intel report: Depthwide Sectors/-4 19842 | -5/Factory | Retrieved Zion intel report: Prototype Schematics 19843 | -5/Factory | Zion Heavy squad teleported in 20055 | -5/Factory | Cargo convoy interrupted 20079 | -5/Factory | System corruption reached 10% 20083 | -5/Factory | Destroyed 9 combat bots 20096 | -5/Factory | Found Prototype Device 20096 | -5/Factory | Identified Exp. EM Shield 20112 | -5/Factory | Found Prototype Device 20112 | -5/Factory | Identified Exp. Thermal Defense Suite 20132 | -5/Factory | Found Prototype Processor 20132 | -5/Factory | Identified Exp. Core Analyzer 20170 | -5/Factory | Core integrity fell below 50% 20210 | -5/Factory | Lost 18 parts (2p9n2u5w) 20210 | -5/Factory | Found PL-3XN's Ring of Power 20311 | -5/Factory | Lost 5 parts (1p3n1u) 20339 | -5/Factory | Build established: Scavenger-Mutant 20411 | -5/Factory | Incoming investigation squad redirected 20723 | -5/Factory | Retrieved Zion intel report: Unaware Analyses 20777 | -5/Factory | Discovered new exit (range 5) 20787 | -5/Factory | Identified exit to Upper Caves 20788 | -5/Factory | Entered Upper Caves 20789 | -5/Upper Caves | Build established: Scavenger-Gunner 20857 | -5/Upper Caves | Identified exit to Upper Caves 21281 | -5/Upper Caves | Build established: Scavenger-Skirmisher 21511 | -5/Upper Caves | Learned location of 1 exit from Upper Caves 21639 | -5/Upper Caves | Found Alien Artifact 21639 | -5/Upper Caves | Identified Core Expander 21639 | -5/Upper Caves | Installed Core Expander, added new Utility slot 21663 | -5/Upper Caves | Entered another Upper Caves area 21664 | -5/Upper Caves | Identified exit to Zhirov 22088 | -5/Upper Caves | Learned Factory emergency access door positions 22150 | -5/Upper Caves | Entered Zhirov 22153 | -5/Zhirov | Discovered new exit (range 3) 22155 | -5/Zhirov | Identified exit to Proximity Caves 22177 | -5/Zhirov | Met Zhirov 22203 | -5/Zhirov | Learned location of Testing (-2) 22203 | -5/Zhirov | Learned location of Command (-1) 22210 | -5/Zhirov | Zhirov requested help retrieving the SGEMP Prototype 22227 | -5/Zhirov | Found Alien Artifact 22227 | -5/Zhirov | Identified Integrated Reactor 22227 | -5/Zhirov | Installed Integrated Reactor, increased core energy generation (+10) 22244 | -5/Zhirov | Found Alien Artifact 22401 | -5/Zhirov | Entered Proximity Caves 22489 | -4/Proximity Caves | Spotted B-86 Titan 22529 | -4/Proximity Caves | Revealed the true nature of CR-A16's Pointy Stick 22532 | -4/Proximity Caves | Destroyed B-86 Titan 22560 | -4/Proximity Caves | Lost 3 parts (3n) 22908 | -4/Proximity Caves | Build established: Infiltrator-Skirmisher 23796 | -4/Proximity Caves | Snuck into a huge 0b10 base via the rear entrance 23882 | -4/Proximity Caves | Core integrity fell below 20% 23920 | -4/Proximity Caves | Lost 5 parts (1p2n2w) 23965 | -4/Proximity Caves | System corruption reached 30% 24000 | -4/Proximity Caves | Lost 6 parts (1p4u1w) 24271 | -4/Proximity Caves | Build established: Gunner 24542 | -4/Proximity Caves | Lost 5 allies 24553 | -4/Proximity Caves | Discovered new exit (range 8) 24573 | -4/Proximity Caves | Lost 4 parts (1u3w) 24652 | -4/Proximity Caves | Entered Factory 24652 | -4/Factory | Accompanied by 6 allies 24652 | -4/Factory | Evolved 2 slots: Propulsion x1, Utility x1 24885 | -4/Factory | Discovered new exit (range 4) 24981 | -4/Factory | Lost 3 allies 25064 | -4/Factory | Entered Extension 25118 | -4/Extension | Build established: Scavenger-Gunner 25146 | -4/Extension | Rescued A7 25158 | -4/Extension | Rescued a captive Derelict 25180 | -4/Extension | Lost 3 parts (1p2u) 25187 | -4/Extension | Zion Light squad teleported in 25191 | -4/Extension | Rescued a captive Derelict 25196 | -4/Extension | Rescued a captive Derelict 25333 | -4/Extension | Rescued a captive Derelict 25453 | -4/Extension | Zion Heavy squad teleported in 25523 | -4/Extension | Zion Fire squad teleported in 25870 | -4/Extension | Spotted B-86 Titan 25883 | -4/Extension | Spotted B-86 Titan 25891 | -4/Extension | Allies destroyed B-86 Titan 25901 | -4/Extension | Destroyed B-86 Titan 25923 | -4/Extension | Lost 4 allies 25933 | -4/Extension | Extracted ID and sensor layout for unrecognized location from A7's data core 25959 | -4/Extension | Found Prototype Protection 25960 | -4/Extension | Identified Zio. Weapon Casing 26298 | -4/Extension | Lost 3 allies 26371 | -4/Extension | Terminal network hard line cut 26495 | -4/Extension | Energy Cycler disabled 26496 | -4/Extension | Rescued a captive Derelict 26544 | -4/Extension | Lost 4 allies 26654 | -4/Extension | Discovered new exit (range 10) 26655 | -4/Extension | Discovered new exit (range 6) 26721 | -4/Extension | Destroyed 7 combat bots 26745 | -4/Extension | Entered Cetus 26745 | -4/Cetus | Accompanied by 15 allies 26756 | -4/Cetus | Spotted Cetus Guard 26756 | -4/Cetus | Spotted Cetus Guard 26764 | -4/Cetus | Spotted Cetus Guard 26767 | -4/Cetus | Allies destroyed Cetus Guard 26768 | -4/Cetus | Allies destroyed Cetus Guard 26768 | -4/Cetus | Spotted Cetus Guard 26771 | -4/Cetus | Allies destroyed Cetus Guard 26781 | -4/Cetus | Allies destroyed Cetus Guard 26807 | -4/Cetus | Lost 8 allies 26925 | -4/Cetus | Discovered new exit (range 15) 26982 | -4/Cetus | Entered Archives 26982 | -4/Archives | Accompanied by 7 allies 26993 | -4/Archives | Build established: Scavenger-Tank 27017 | -4/Archives | Discovered new exit (range 14) 27092 | -4/Archives | Discovered new exit (range 15) 27103 | -4/Archives | Lost 3 allies 27171 | -4/Archives | Entered Hub_04(d) 27171 | -4/Hub_04(d) | Accompanied by 4 allies 27185 | -4/Hub_04(d) | Zion Heavy squad teleported in 27229 | -4/Hub_04(d) | Retrieved Zion intel report: Active Terminals 27240 | -4/Hub_04(d) | Spotted B-86 Titan 27244 | -4/Hub_04(d) | Garrison activated, responded to threat 27257 | -4/Hub_04(d) | Destroyed B-86 Titan 27264 | -4/Hub_04(d) | Found Scatter Rocket Array 27267 | -4/Hub_04(d) | Found Scatter Rocket Array 27274 | -4/Hub_04(d) | Network Hub disabled 27293 | -4/Hub_04(d) | Lost 3 parts (2u1w) 27305 | -4/Hub_04(d) | Lost 5 allies 27306 | -4/Hub_04(d) | Retrieved Zion intel report: Guard Positions 27367 | -4/Hub_04(d) | Lost 3 parts (3n) 27408 | -4/Hub_04(d) | Retrieved Zion intel report: Component Schematics 27409 | -4/Hub_04(d) | Zion Demo squad teleported in 27409 | -4/Hub_04(d) | Destroyed 7 combat bots 27423 | -4/Hub_04(d) | Spotted Lightning 27431 | -4/Hub_04(d) | Spotted Lightning 27433 | -4/Hub_04(d) | Spotted Lightning 27456 | -4/Hub_04(d) | Destroyed Lightning 27456 | -4/Hub_04(d) | Destroyed Lightning 27474 | -4/Hub_04(d) | Destroyed Lightning 27520 | -4/Hub_04(d) | Lost 8 parts (2p3n2u1w) 27555 | -4/Hub_04(d) | Network Hub disabled 27640 | -4/Hub_04(d) | Discovered new exit (range 15) 27642 | -4/Hub_04(d) | Zion Fire squad teleported in 27665 | -4/Hub_04(d) | Entered Research 27665 | -3/Research | Accompanied by 3 allies 27665 | -3/Research | Evolved 2 slots: Propulsion x1, Utility x1 27710 | -3/Research | Build established: Scavenger-Mutant 27737 | -3/Research | Found Prototype Processor 27737 | -3/Research | Identified Exp. Terrain Scan Processor 27755 | -3/Research | Discovered new exit (range 15) 27808 | -3/Research | Lost 3 parts (2n1w) 27955 | -3/Research | Lost 4 parts (1p3u) 28007 | -3/Research | Zion Infowar Resupply teleported in 28167 | -3/Research | Lost 4 parts (1p2u1w) 28415 | -3/Research | First assault squad dispatched 28490 | -3/Research | Zion Heavy squad teleported in 28549 | -3/Research | System corruption reached 10% 28576 | -3/Research | Released all parts (17) 28588 | -3/Research | Core integrity fell below 50% 28589 | -3/Research | Destroyed 7 combat bots 28595 | -3/Research | Spotted B-86 Titan 28596 | -3/Research | Core integrity fell below 20% 28596 | -3/Research | Destroyed B-86 Titan 28617 | -3/Research | Identified Transdimensional Reconstructor 28617 | -3/Research | Warped through subspace 28623 | -3/Research | Lost 6 parts (2p1n3u) 28623 | -3/Research | Found Fusion Bomb Launcher 28634 | -3/Research | Discovered new exit (range 5) 28644 | -3/Research | Entered another Research area 28644 | -2/Research | Evolved 2 slots: Propulsion x1, Utility x1 28664 | -2/Research | Identified Dimensional Node Initializer 28753 | -2/Research | Zion Infowar Resupply teleported in 28758 | -2/Research | Found Prototype Processor 28758 | -2/Research | Identified Spectral Analyzer 28838 | -2/Research | Build established: Hacker-Mutant 28893 | -2/Research | Retrieved Zion intel report: Active Terminals 28894 | -2/Research | First assault squad dispatched 28923 | -2/Research | Incoming assault squad redirected 28980 | -2/Research | Retrieved Zion intel report: Prototype Stockpiles 29025 | -2/Research | Discovered new exit (range 8) 29077 | -2/Research | Retrieved Zion intel report: Main Access 29077 | -2/Research | Identified exit to Access 29078 | -2/Research | Zion Heavy squad teleported in 29337 | -2/Research | System corruption reached 10% 29374 | -2/Research | Identified exit to Testing 29374 | -2/Research | Entered Testing 29409 | -2/Testing | Core integrity fell below 50% 29411 | -2/Testing | Spotted Alpha 7 29420 | -2/Testing | Rewired MA-TJU(L) 29427 | -2/Testing | Allies destroyed Alpha 7 29450 | -2/Testing | Retrieved Zion intel report: Component Stockpiles 29451 | -2/Testing | Retrieved Zion intel report: Emergency Access 29452 | -2/Testing | Lost 15 parts (2p6n6u1w) 29452 | -2/Testing | Found Prototype Launcher 29452 | -2/Testing | Identified Ragnarok Missile Launcher 29461 | -2/Testing | Core integrity fell below 20% 29462 | -2/Testing | Retrieved Zion intel report: Component Schematics 29485 | -2/Testing | Found Prototype Energy Gun 29485 | -2/Testing | Identified Hyp. EM Gauss Rifle 29489 | -2/Testing | Destroyed by G-73 Enforcer with Heavy Laser Last Messages --------------- 29466_ Biostasis Chamber disabled. 29466_ Adv. Hacking Suite destroyed. 29468_ Critical hit (Burn: +37). 29469_ The unstable cave ceiling collapses. 29469_ K-01 Serf collects debris. 29471_ K-01 Serf destroyed. 29471_ Acquired 21 matter. 29471_ Quantum Reactor destroyed. 29471_ Cld. Q-thruster destroyed. 29472_ System corrupted: Slammed into wall. 29472_ Imp. System Shield destroyed. 29472_ System corrupted by crushing effect (+4). 29474_ Reinforced Shell breached. 29483_ System corrupted: Matter fused (-7). 29484_ Plasma Sword destroyed. 29484_ S-43 Plague destroyed. 29485_ Acquired Prototype Energy Gun. 29485_ Identified Hyp. EM Gauss Rifle. 29487_ Acquired 11 matter. 29488_ Plasma Sword destroyed. Map ----- +----------------------------------------------------+ | ?????????????+???????????????????????????????????? | | ?????????????????????????????????????????????????? | | ?????????????????????????????????????????????????? | | ?????????????????????????????????????????????????? | | ?????????????????????????????????????????????????? | | ?????????????????????????????????????????????????? | | ?????????????????????????????????????????????????? | | ?????????????????????????????????????????????????? | | ?????????????????????????????????????????????????? | | ?????????????????????????????????????????????????? | | ????????????????????????? ?????????????????????? | | ????????????????????????? #???????????????????? | | ????????????????????????? #???????????????????? | | ????????????????????????? #???????????????????? | | ????????????????????????? #???????????????????? | | ????????????????????????? #???????????????????? | | ????????????????????????? c#???????????????????? | | ????????????????????????# #??????????????????!? | | ????????????????????????# #???????????????????? | | ????????????????????????# #???????????????????? | | ????????????????????????# #???????????????????? | | ???????????############?# #???????????????????? | | ?????????#?? #?# #???????????????????? | | ?????????# #?# #???????????????????? | | ?????????# #?# #???????????????????? | | ?????????# "" ###@ ####+####???????????? | | ?????????# """" # ?????????? | | ?????????# """ gg ????????? | | ?????????# " # u """ ?????????? | | ?????????# #g A""" ?????????? | | ?????????# """g #gg """ ######??????????? | | ?????????# ??" # """ #???????????????? | | ?????????# ????""" # = """ #???????????????? | | ?????????????????? # ! """ #???????????????? | | ???????????????######## """ #???????????????? | | ???????????##### #xk R #???????????????? | | ???????????# "" #???????????????? | | ???????????# " #???????????????? | | ???????????# %%% u #???????????????? | | ???????????# #x ### #???????????????? | | ???????????# " #?? #???????????????? | | ???????????# " #??? #???????????????? | | ##########?# "" #??? #???????????????? | | #?# # #???? #???????????????? | | ############# #????? #???????????????? | | #??????+???????????????? | | ###########??????????????????????? | | ##### ""#??????????????????????????????? | | ????# ""#??????????????????????????????? | | ????# T"#??????????????????????????????? | +----------------------------------------------------+ Best States ------------- Heat Dissipation 163 Energy Generation 53 Energy Capacity 600 Matter Stores 300 Matter Capacity 300 Sight Range 22 Robot Scan Range 20 Terrain Scan Density 335 ECM Strength 2 Jamming Range 16 Cloak Strength 2 Power Amplification 20 Armor Coverage 600 Resistance: KI 30 Core Shielding 30 Weapon Shielding 66 Phase Shifting 10 Evasion (%) 77 Targeting Accuracy 8 Target Analysis 8 Core Analysis 8 Recoil Reduction 8 Particle Charging 30 Offensive Hacking 14 Defensive Hacking 22 Item Schematics ----------------- Hcp. Storage Unit | -10/Materials | Hacked Exp. Sensor Array | -9/Materials | Scanalyzed Targeting Computer | -9/Materials | Extracted Combat Drone Bay | -7/Data Miner | Free Lgt. Regenerative Plating | -7/Data Miner | Free Cld. Aerolev Unit | -7/Data Miner | Free Gravity Neutralizer | -7/Data Miner | Free Field Propulsion Drive | -7/Data Miner | Free Scatter Rocket Array | -7/Data Miner | Free Imp. Kinecellerator | -7/Data Miner | Free Imp. Arc Projector | -7/Data Miner | Free Proton Cannon | -6/Zion | Archive Disruptor Cannon | -6/Zion | Archive Hvy. Machine Gun | -6/Zion | Archive IFF Parser | -6/Zion | Archive Imp. Particle Charger | -6/Zion | Archive Imp. Launcher Guidance Computer | -6/Zion | Archive Hardcell Cannon | -6/Zion | Archive Lgt. Antimatter Reactor | -6/Zion | Archive Nuclear Pulse Thruster | -6/Zion | Archive Tesla Rifle | -6/Zion | Archive Adv. Shield Generator | -6/Zion | Archive Adv. Sensor Array | -6/Zion | Archive Imp. Medium Treads | -6/Zion | Archive F-cell Engine | -5/Factory | Z-intel Enh. Fission Core | -5/Factory | Z-intel Cld. Nuclear Pulse Thruster | -5/Factory | Z-intel Ionic Axe | -5/Factory | Z-intel Cld. Deuterium Engine | -5/Factory | Z-intel Exp. Propulsion Shielding | -5/Factory | Z-intel Hvy. Gatling Laser | -5/Factory | Z-intel Cld. Cesium-ion Thruster | -5/Factory | Z-intel Exp. Heat Sink | -5/Factory | Z-intel Imp. Matter Compressor | -5/Factory | Z-intel Enh. Coil Gun | -5/Factory | Z-intel Assault Drone Bay | -5/Zhirov | Free Exp. Optical Array | -5/Zhirov | Free Imp. Arc Thrower | -5/Zhirov | Free Katana | -4/Hub_04(d) | Z-intel Lrg. Storage Unit | -4/Hub_04(d) | Z-intel Adv. Recoil Stabilizer | -4/Hub_04(d) | Z-intel Wheel | -4/Hub_04(d) | Z-intel Lrn. Proton Cannon | -4/Hub_04(d) | Z-intel Quantum Capacitor | -4/Hub_04(d) | Z-intel Adv. Targeting Computer | -4/Hub_04(d) | Z-intel Imp. Point Defense System | -4/Hub_04(d) | Z-intel Imp. Antigrav System | -4/Hub_04(d) | Z-intel EM Disruption Field | -4/Hub_04(d) | Z-intel VSS Leg | -4/Hub_04(d) | Z-intel Propulsion Shielding | -4/Hub_04(d) | Z-intel Mni. Drone Bay | -2/Testing | Z-intel Quantum Reactor | -2/Testing | Z-intel Drone Bay | -2/Testing | Z-intel Imp. Phase Shifter | -2/Testing | Z-intel Hvy. Treads | -2/Testing | Z-intel Adv. Phase Shifter | -2/Testing | Z-intel ECM Suite | -2/Testing | Z-intel Adv. System Restoration Module | -2/Testing | Z-intel Lyr. Heavy Armor Plating | -2/Testing | Z-intel System Shield | -2/Testing | Z-intel Biometal Heavy Treads | -2/Testing | Z-intel Imp. Field Recycling Unit | -2/Testing | Z-intel Biometal Leg | -2/Testing | Z-intel Myomer Leg | -2/Testing | Z-intel Hvy. Pick | -2/Testing | Z-intel Dispersion Rifle | -2/Testing | Z-intel Robot Schematics ------------------ S-27 Virus | -7/Data Miner | Free R-10 Processor | -7/Data Miner | Free Y-64 Sentinel | -7/Data Miner | Free B-60 Warrior | -7/Data Miner | Free L-41 Fighter | -7/Data Miner | Free T-07 Excavator | -6/Zion | Archive G-73 Enforcer | -6/Zion | Archive Fabricated ------------ Adv. Signal Interpreter | x2 | -7/Factory | Preloaded Exp. Sensor Array | x1 | -7/Factory Lgt. Armored Exoskeleton | x1 | -7/Factory | Preloaded Combat Drone Bay | x1 | -6/Factory Lgt. Regenerative Plating | x1 | -6/Factory Repaired ---------- Imp. Treads | 57% | -8/Materials Hvy. Ion Cannon | 31% | -8/Storage Adv. Treads | 68% | -8/Storage Transport Network Coupler | 75% | -8/Storage Flexi-carbon Leg | 8% | -6/Factory Studied --------- Carbon-fiber Leg | -8/Materials | Hacked EM Pulse Cannon | -8/Materials | Hacked Hvy. Ion Cannon | -7/Factory | Hacked Flexi-carbon Leg | -6/Factory | Hacked Imp. Carbon-fiber Leg | -5/Factory | Hacked Lgt. Fission Core | -5/Factory | Hacked Phase Cannon | -5/Factory | Hacked Fusion Bomb Launcher | -2/Research | Hacked Lgt. Quantum Reactor | -2/Research | Hacked Alien Tech Used ----------------- Core Expander Integrated Reactor Transdimensional Reconstructor Achievements -------------- None Challenges ------------ None Game ------ Seed ActiveWeaponsCartridge Manual? 0 Play Time 03:44:52 Cumulative 448.9 hours Start 2026.04.22 @ 11:48:19 End 2026.04.25 @ 19:04:07 Sessions 3 Manual Loads 0 Difficulty Rogue Special Mode None Game No. 264 Rogue 264 Adventurer 0 Explorer 0 Win Type - Total 18 Types 9/1/3/2/1/0/0/2/0/0 Lore% 94 Gallery% 82 Achievement% 73 Wizard Run 0 Options --------- Layout 1 ASCII 0 Keyboard 0 Movement Mouse Keybinds 0 Fullscreen 2 Font 32/SmallcapsGlow Map View 50x35 Zoom Use 0% Tactical HUD 1 Map Filters NONE Filters NONE Steam 1 RUN: 238c76fe-75aa-4e56-be01-fea6777e0817